Cogmind - Beta 17.1 @@@ ROGUE MODE // 2026.09.09 @ 03:03:43 Player: Boxplot Result: Escaped! Performance ------------- Evolutions (9) 4500 Regions Visited (31) 6200 Robots Destroyed (339) 1695 Value Destroyed (14208) 14208 Prototype IDs (63) 1260 Alien Tech Used (3) 600 Bonus (7286) 7286 TOTAL SCORE: 35749 Bonus ------- High Alert Combat Kills 720 Follower Combat Kills 2255 Hunted by Unchained 500 Network Hubs Disabled 200 Met Data Miner 300 MAIN.C Attacked Proxy Base 500 Built Enhanced Grunts 300 Met R17 at Cetus 500 Met R17 at Research 2000 Win 3000 Friendly Fire -2989 Cogmind --------- Core Integrity 1485/1600 Matter 290/300 Energy 307/590 System Corruption 5% Temperature Cool (8) Movement Treading (160) Location To Epsilon Eridani Parts ------- > --- POWER (2) -------- Particle Reactor Quantum Reactor > --- PROPULSION (6) --- High-density Centrium Heavy Treads High-density Centrium Heavy Treads Myomer Leg Centrium Leg > --- UTILITY (14) ----- Experimental Heat Sink Advanced Coolant Injector Huge Storage Unit Experimental Optical Array Advanced Sensor Array Advanced Signal Interpreter Experimental Terrain Scanner Experimental Terrain Scan Processor Weapon Mount Experimental Core Analyzer Quantum Capacitor Advanced Transmission Jammer Improved Focal Shield > --- WEAPON (4) ------- Advanced Variable Charge Gun Disruptor Cannon Enhanced Hardcell Cannon Point Singularity Launcher > --- INVENTORY (25) --- Particle Reactor Advanced Cooling System High-capacity Storage Unit Advanced Energy Well (500) Advanced Signal Interpreter Energy Filter Energy Filter Precision Energy Filter Experimental Thermal Shield Advanced Point Defense System Advanced Component Analysis Suite Core Reset Matrix Subatomic Replicator Quantum Rifle Disruptor Cannon Disruptor Cannon EMDS Compact Mass Driver Enhanced Hardcell Cannon Smartbomb Launcher Smartbomb Launcher Peak State ------------ > --- POWER ------------ Particle Reactor Particle Reactor > --- PROPULSION ------- High-density Centrium Heavy Treads High-density Centrium Heavy Treads Heavy Shield Leg > --- UTILITY ---------- Experimental Heat Sink Advanced Coolant Injector Huge Storage Unit Experimental Optical Array Advanced Signal Interpreter Experimental Terrain Scanner Experimental Terrain Scan Processor Weapon Mount Experimental Core Analyzer Quantum Capacitor Advanced Transmission Jammer Improved Focal Shield Advanced Component Analysis Suite > --- WEAPON ----------- Compact HERF Cannon Core Cannon > --- INVENTORY -------- Myomer Leg Myomer Leg Myomer Leg Myomer Leg Biometal Leg Enhanced Biometal Leg Advanced Cooling System High-capacity Storage Unit Advanced Energy Well Advanced Matter Compressor Advanced Matter Compressor Advanced Matter Compressor Advanced Sensor Array Advanced Signal Interpreter Precision Energy Filter Experimental Thermal Shield Advanced Point Defense System Core Reset Matrix Subatomic Replicator EMDS Neutron Missile Launcher Point Singularity Launcher [Rating: 223] Favorites ----------- Power Backup Power III Engine Backup Power III Power Core Micro Fission Core Reactor Particle Reactor Propulsion Antigrav System Treads Light Treads Leg Myomer Leg Wheel Wheel Hover Unit Antigrav System Utility Advanced Visual Processing Unit Device Improved Sensor Array Storage High-capacity Storage Unit Processor Advanced Visual Processing Unit Hackware Hacking Suite Protection Reactive Plating Weapon Force Rifle Energy Gun Force Rifle Energy Cannon Advanced Plasma Cannon Ballistic Gun Advanced KE Penetrator Ballistic Cannon Mini Assault Cannon Launcher Point Singularity Launcher Special Weapon RU-N14's Throwing Claymores Slashing Weapon Sigix Broadsword Build | -11 -10 -10 -9 -9 -8 -7 -7 -7 -7 -7 -7 -6 -6 -6 -6 -6 -5 -5 -5 -5 -5 -5 -5 -5 -4 -4 -4 -3 -3 -2 -1 ------- Run | Yrd Mat Min Mat Min Mat Fac Was Fac Low Low Zio Pro Fac Low Low Dat Pro Fac Was Fac Ext Cet Arc Hub Fac Was Fac Res Qua Res Acc Slots Evolved 18 | . . . 2 . 2 2 . . . . . . 2 . . . . 2 . . . . . . 2 . . 2 . 2 2 Power . | . . . . . . . . . . . . . . . . . . . . . . . . . . . . . . . . Propulsion 4 | . . . 1 . 1 1 . . . . . . . . . . . 1 . . . . . . . . . . . . . Utility 12 | . . . 1 . 1 1 . . . . . . 2 . . . . 1 . . . . . . 2 . . 1 . 1 2 Weapon 2 | . . . . . . . . . . . . . . . . . . . . . . . . . . . . 1 . 1 . Parts Attached 302 | 7 18 6 14 6 37 3 2 13 5 1 3 1 8 2 . 1 6 9 4 13 9 6 8 20 8 3 22 39 10 10 8 Power 33 | 1 2 1 1 . 3 . . 2 1 . . . 1 1 . . 2 1 . 1 . . 1 1 1 . 2 5 2 3 1 Engine 15 | 1 2 1 1 . 2 . . 2 . . . . 1 1 . . 2 . . . . . 1 1 . . . . . . . Core 7 | . . . . . 1 . . . . . . . . . . . . 1 . 1 . . . . 1 . 2 1 . . . Reactor 11 | . . . . . . . . . 1 . . . . . . . . . . . . . . . . . . 4 2 3 1 Propulsion 91 | 3 5 1 6 3 17 2 . 2 1 . . . 1 . . . 1 3 2 4 4 . . 7 . 1 6 15 3 3 1 Treads 18 | 1 1 . 4 . 8 . . . . . . . . . . . . . . . . . . . . 1 . 1 . 2 . Leg 22 | . . 1 . . . . . . . . . . . . . . 1 . 1 . . . . 2 . . . 12 3 1 1 Wheel 17 | 2 4 . 2 3 5 . . . . . . . . . . . . . . . . . . . . . . 1 . . . Hover 34 | . . . . . 4 2 . 2 1 . . . 1 . . . . 3 1 4 4 . . 5 . . 6 1 . . . Flight . | . . . . . . . . . . . . . . . . . . . . . . . . . . . . . . . . Utility 105 | 1 4 1 2 1 9 1 1 4 1 . 2 . 4 1 . . 1 4 1 5 2 6 4 11 5 2 13 12 3 3 1 Device 54 | . 2 1 1 1 4 . 1 2 . . 2 . 1 . . . . 2 . 2 2 1 3 5 3 2 5 8 2 3 1 Storage 6 | 1 2 . . . . 1 . . . . . . . . . . . . 1 . . . . 1 . . . . . . . Processor 10 | . . . . . 2 . . 1 1 . . . . . . . . . . . . . . . 1 . 2 2 1 . . Hackware 19 | . . . . . . . . . . . . . 2 1 . . . 2 . 3 . . . 4 1 . 5 1 . . . Protection 16 | . . . 1 . 3 . . 1 . . . . 1 . . . 1 . . . . 5 1 1 . . 1 1 . . . Artifact . | . . . . . . . . . . . . . . . . . . . . . . . . . . . . . . . . Weapon 73 | 2 7 3 5 2 8 . 1 5 2 1 1 1 2 . . 1 2 1 1 3 3 . 3 1 2 . 1 7 2 1 5 Energy Gun 19 | 1 1 . 2 . 2 . . 1 2 1 . 1 1 . . 1 1 1 . 1 . . . . . . . 2 . . 1 Energy Cannon 17 | . . . 1 . 3 . . . . . . . 1 . . . . . . 2 1 . . 1 2 . . 3 1 1 1 Ballistic Gun 17 | 1 3 1 2 1 1 . 1 1 . . . . . . . . . . . . . . 3 . . . 1 2 . . . Ballistic Cannon 7 | . 2 . . 1 1 . . 1 . . . . . . . . 1 . . . . . . . . . . . . . 1 Launcher 11 | . 1 2 . . 1 . . 2 . . . . . . . . . . 1 . 2 . . . . . . . . . 2 Special Weapon 1 | . . . . . . . . . . . 1 . . . . . . . . . . . . . . . . . . . . Impact Weapon . | . . . . . . . . . . . . . . . . . . . . . . . . . . . . . . . . Slashing Weapon 1 | . . . . . . . . . . . . . . . . . . . . . . . . . . . . . 1 . . Piercing Weapon . | . . . . . . . . . . . . . . . . . . . . . . . . . . . . . . . . Special Melee Weapon . | . . . . . . . . . . . . . . . . . . . . . . . . . . . . . . . . Unidentified Prototypes 29 | . . . 1 . 4 . 1 . 1 . 3 . . . . . 1 . 2 . . 1 1 4 1 1 . 5 1 2 . Corrupted Parts 8 | . . . . . . . . 1 . . . . . . . . . . . . . . 4 . . . . 1 2 . . System Corruption 50 | . . . . . . . . 5 . . . . . . . . . . . . . . 29 . . . . 4 12 . . Parts Lost 44 | . 4 . 1 1 6 . . . . . . . . 1 . . . 1 1 1 1 . . 1 . . 3 6 . 13 4 Power 6 | . 1 . . . . . . . . . . . . . . . . . . . . . . . . . 1 1 . 3 . Propulsion 15 | . 1 . 1 1 3 . . . . . . . . . . . . . 1 . . . . 1 . . 1 2 . 3 1 Utility 12 | . . . . . 3 . . . . . . . . 1 . . . 1 . 1 1 . . . . . 1 . . 4 . Weapon 11 | . 2 . . . . . . . . . . . . . . . . . . . . . . . . . . 3 . 3 3 Highest Loss Streak 11 | . 4 . 1 1 2 . . . . . . . . 1 . . . 1 1 1 1 . . 1 . . 2 4 . 11 2 To Critical Strikes . | . . . . . . . . . . . . . . . . . . . . . . . . . . . . . . . . Average Backups 19 | 3 18 24 24 25 24 15 15 14 15 15 14 15 14 16 15 15 15 15 18 16 16 16 17 19 17 18 17 20 23 20 21 Power 1 | . 3 2 2 2 1 1 1 1 1 1 1 1 . 1 2 2 1 1 1 1 1 1 1 1 1 1 1 2 2 1 . Propulsion 2 | 1 3 7 6 7 6 1 1 1 1 1 1 1 1 1 1 1 1 1 2 1 1 1 1 . 1 1 . . 1 2 2 Utility 10 | . 3 8 9 10 10 8 8 9 11 11 10 10 9 8 8 8 9 8 10 9 10 9 10 12 11 12 11 12 13 10 11 Weapon 4 | . 7 7 6 6 5 5 4 2 2 2 2 3 3 5 4 4 4 4 4 4 4 4 5 4 4 4 4 4 5 3 5 Tool/Special . | . . . . . . . . . . . . . . . . . . . . . . . . . . . . . . . . Unused Backups 90 | . 5 2 9 1 11 1 . 5 . . 1 . 6 . 1 . . 2 2 6 2 . 1 1 2 1 1 5 5 . 20 Power 12 | . 1 . 2 . 2 . . 2 . . . . . . . . . 1 . 1 1 . . . . . . 2 . . . Propulsion 11 | . . . . . 5 1 . . . . . . . . . . . 1 . . 1 . . . . . . . 1 . 2 Utility 32 | . 1 1 2 1 . . . 1 . . 1 . 1 . 1 . . . 2 2 . . 1 1 . 1 1 2 4 . 9 Weapon 33 | . 3 1 5 . 4 . . 2 . . . . 5 . . . . . . 3 . . . . 2 . . 1 . . 7 Tool/Special 2 | . . . . . . . . . . . . . . . . . . . . . . . . . . . . . . . 2 Average Slot Usage (%) 93 | . 99 100 96 99 98 98 100 99 96 92 89 92 89 86 87 87 92 93 92 93 93 94 87 81 99 99 95 88 91 85 80 Engine 6 | . 13 14 11 11 7 . . 1 7 7 7 7 6 6 6 6 11 7 5 5 5 7 5 11 9 5 4 . . . . Core 1 | . . . . . 1 7 7 5 . . . . . . . . . 2 5 5 5 2 4 . . 5 4 2 . . . Treads 4 | . 14 14 11 11 18 . . . . . . . . . . . . . . . . . . . . . . . . 1 7 Leg 2 | . . . . . . . . . . . . . . . . . . . . . . . . . . . . 15 27 20 5 Wheel 4 | . 14 14 18 21 15 . . . . . . . . . . . . . . . . . . . . . . 1 . . . Hover 18 | . . . . . 1 38 38 38 36 35 35 35 27 25 25 25 24 27 26 26 27 27 26 30 30 29 28 8 . . . Device 14 | . 13 14 11 11 15 13 15 14 12 14 13 14 11 11 11 10 11 11 9 11 19 19 15 5 10 10 9 12 22 22 29 Storage 6 | . 14 14 11 11 9 7 7 7 7 7 7 7 6 6 6 6 6 5 5 5 5 5 5 5 5 5 5 4 4 4 3 Processor 8 | . . . . . 1 15 15 15 14 14 14 14 12 12 12 12 12 11 11 11 6 5 5 5 9 10 14 18 17 16 15 Hackware 6 | . . . . . . . . . . . . . 11 11 12 12 12 13 16 15 11 11 9 5 25 25 16 5 . . . Protection 2 | . . . 10 11 10 . . . 1 . . . . . . 1 . 1 . . . 2 1 4 . . 3 3 . 2 . Energy Gun 4 | . 5 13 7 . 7 15 8 6 7 7 5 7 6 6 6 6 6 5 5 5 5 3 . . . . . 1 . . . Energy Cannon 3 | . . . 3 11 7 . . . . . . . 2 5 5 4 . 3 4 5 4 6 6 2 5 5 4 5 5 7 3 Ballistic Gun 4 | . 18 13 10 10 2 . 6 2 . . . . . . . . . . . . . . 4 8 4 5 4 3 . . . Ballistic Cannon 1 | . 3 . . . . . . 4 6 7 5 7 3 . . . 4 . . . . . . . . . . . . . 2 Peak Build Rating 223 | 6 13 13 21 24 41 44 49 55 56 53 59 53 68 69 66 65 73 86 91 99 101 106 111 114 126 129 131 177 196 211 223 Average Rating 82 | 4 10 12 18 21 28 43 44 47 52 52 51 53 61 65 65 64 68 80 84 91 97 100 102 109 120 123 118 141 188 199 207 On Entrance 75 | . 6 13 13 21 22 38 44 45 52 52 53 53 53 66 65 65 65 71 83 87 95 99 100 108 106 123 122 118 176 196 207 Avg Prop Armor Cover (%) 10 | 11 11 12 8 8 15 . . . . . . . . . . . . . 6 . . . . . . . 3 2 . 14 7 Naked Turns . | . . . . . . . . . . . . . . . . . . . . . . . . . . . . . . . . Heaviest Build 173 | 14 92 92 105 111 108 33 34 46 44 41 41 61 73 70 67 50 67 63 64 69 74 85 111 113 80 73 81 148 167 173 173 Greatest Support 180 | 10 16 10 20 26 63 41 41 45 45 45 45 45 49 49 49 49 49 63 66 69 72 72 72 74 73 73 74 158 161 180 180 Greatest Overweight (x) 23 | 1 9 9 10 10 10 . . 1 . . . 1 1 1 1 1 1 . 1 1 1 1 1 1 1 1 23 2 1 1 . Average Overweight (x) . | . 5 8 6 4 3 . . . . . . . . 1 . . . . . . . . . . . . . . . . . Largest Inventory Capacity 25 | 8 25 25 25 25 25 25 15 15 15 15 15 20 20 20 20 15 20 20 20 20 20 20 20 20 20 20 20 25 25 25 25 Average Capacity 20 | 7 21 25 25 25 25 15 15 15 15 15 15 15 15 20 19 15 16 15 20 20 20 20 20 20 20 20 20 21 25 25 25 Most Carried 25 | 6 25 25 25 25 25 16 15 15 15 15 15 16 16 17 17 15 19 18 20 20 20 20 20 20 20 20 20 25 25 25 25 Average Carried 20 | 3 18 24 24 25 24 14 14 14 15 15 14 15 14 16 15 15 15 15 18 19 19 19 19 19 19 19 19 21 24 22 23 Final Capacity 25 | 8 25 25 25 25 25 15 15 15 15 15 15 20 20 20 15 15 20 20 20 20 20 20 20 20 20 20 20 25 25 25 25 Final Carried 25 | 6 25 25 25 25 17 15 15 15 15 15 15 16 16 16 15 15 19 17 20 20 20 20 20 19 20 20 19 25 25 24 24 Class Distribution -------------------- 24% | Scavenger-Mutant 19% | Hacker-Scout 10% | Scout 9% | Commander-Mutant 6% | Scavenger-Skirmisher 6% | Mutant 5% | Hacker-Skirmisher 4% | Hacker-Mutant 3% | Scavenger-Assassin Dominant Class ---------------- Mutant | -10/Materials Scavenger-Mutant | -10/Mines Scavenger-Mutant | -9/Materials Scavenger-Mutant | -9/Mines Scavenger-Mutant | -8/Materials Scout | -7/Factory Scout | -7/Waste Scout | -7/Factory Scout | -7/Lower Caves Scout | -7/Lower Caves Scout | -7/Zion Scout | -6/Proximity Caves Hacker-Scout | -6/Factory Hacker-Skirmisher | -6/Lower Caves Hacker-Skirmisher | -6/Lower Caves Hacker-Scout | -6/Data Miner Hacker-Scout | -5/Proximity Caves Hacker-Scout | -5/Factory Hacker-Scout | -5/Waste Hacker-Scout | -5/Factory Hacker-Mutant | -5/Extension Commander-Mutant | -5/Cetus Commander-Mutant | -5/Archives Scavenger-Mutant | -5/Hub_04(d) Wizard-Scout | -4/Factory Wizard-Mutant | -4/Waste Hacker-Scout | -4/Factory Scavenger-Skirmisher | -3/Research Scavenger-Assassin | -3/Quarantine Scavenger-Assassin | -2/Research Scavenger-Skirmisher | -1/Access Resources | -11 -10 -10 -9 -9 -8 -7 -7 -7 -7 -7 -7 -6 -6 -6 -6 -6 -5 -5 -5 -5 -5 -5 -5 -5 -4 -4 -4 -3 -3 -2 -1 ----------- Run | Yrd Mat Min Mat Min Mat Fac Was Fac Low Low Zio Pro Fac Low Low Dat Pro Fac Was Fac Ext Cet Arc Hub Fac Was Fac Res Qua Res Acc Matter Collected 13572 | 291 592 211 463 223 737 . . 610 487 247 101 30 362 137 40 . 816 135 679 305 649 170 396 1037 295 294 610 1817 441 110 1287 Remotely . | . . . . . . . . . . . . . . . . . . . . . . . . . . . . . . . . Salvage Created 16771 | 113 883 91 765 626 1794 77 . 430 137 93 . . 403 124 . . 784 171 151 260 1724 366 305 1535 665 306 766 754 724 1083 1641 Parts 734 | 5 54 6 69 30 80 1 . 25 5 4 . . 18 5 . . 15 8 6 20 73 13 22 69 13 8 38 27 41 37 42 Haulers Intercepted 11 | . 2 . 1 . 4 . . . . . . . . . . . . . . . . . . . 1 . 1 . . 1 1 Recyclers Shooed 20 | . 2 . 4 . 3 1 . 3 . . . . . . . . . 2 . . 1 . . . . . 1 1 . . 2 Parts Field Recycled . | . . . . . . . . . . . . . . . . . . . . . . . . . . . . . . . . Retrieved Matter . | . . . . . . . . . . . . . . . . . . . . . . . . . . . . . . . . Parts Self-Destructed 56 | . . . . . . . . . 5 6 . 6 . . . . 39 . . . . . . . . . . . . . . Prevented 33 | . . . . . . . . . . 1 . . . . . . 32 . . . . . . . . . . . . . . Parts Restored 3 | . . . . . . . . . . . . . . . . . . . . . . . . . . 2 . 1 . . . Broken 3 | . . . . . . . . . . . . . . . . . . . . . . . . . . 2 . 1 . . . Kills | -11 -10 -10 -9 -9 -8 -7 -7 -7 -7 -7 -7 -6 -6 -6 -6 -6 -5 -5 -5 -5 -5 -5 -5 -5 -4 -4 -4 -3 -3 -2 -1 ------- Run | Yrd Mat Min Mat Min Mat Fac Was Fac Low Low Zio Pro Fac Low Low Dat Pro Fac Was Fac Ext Cet Arc Hub Fac Was Fac Res Qua Res Acc Combat Hostiles Destroyed 216 | . 13 5 19 12 30 . . 1 1 3 . . 2 4 . . 16 3 . 3 18 4 . 13 5 . 6 11 9 14 24 Guns 51 | . 9 2 7 4 5 . . . 1 1 . . 1 . . . . 3 . 1 . . . 11 . . 3 3 . . . Cannons 78 | . 3 . 5 7 13 . . 1 . 2 . . 1 . . . 12 . . 1 6 . . 2 3 . 2 3 6 8 3 AOE 46 | . 1 3 7 . 7 . . . . . . . . 4 . . 4 . . . 3 1 . . . . . 3 . . 13 Classes Destroyed 21 | 2 7 . 1 1 . . . . 2 . . . . 1 . . 1 . 1 . 1 . . . . . . 1 . 1 2 Worker 11 | . 4 . . 1 2 . . . . . . . . . . . . . . . . . . 1 . . 1 . . . 2 Builder 9 | . 2 . 1 . 1 . . . . . . . 1 . . . . . . . 2 . . 1 1 . . . . . . Tunneler 10 | 2 . . . . . . . 1 . . . . 1 . . . . . . . 1 . . 3 . . . 1 . . 1 Hauler 11 | . 2 . 1 . 4 . . . . . . . . . . . . . . . . . . . 1 . 1 . . 1 1 Recycler 27 | 1 3 . 1 3 3 1 . 2 . . . . 2 . . . . . . . 1 . . 2 1 . 2 1 . . 4 Carrier 1 | . . . . . . . . . . . . . . . . . . . . . . . . . . . . . . . 1 Operator 21 | . 3 . 2 . 2 . . 2 . . . . . . . . . . . 2 1 . 9 . . . . . . . . Watcher 25 | . 2 . 3 . 3 . . 2 . . . . 1 . . . . . . 1 2 2 . 3 1 . 1 . 2 . 2 Swarmer 40 | . 3 3 11 3 8 . . . . . . . . 4 . . . . . . . . . . . . . 4 . . 4 Saboteur 1 | . . . . . . . . . . . . . . . . . . . . . . . . . . . . . . . 1 Grunt 70 | . 10 2 3 8 16 . . . . 3 . . . . . . 11 . . . 8 . . . 2 . . . . 2 5 Brawler 4 | . . . . . . . . . . . . . . . . . 2 . . . 1 . . . . . . . . . 1 Duelist 2 | . . . . 1 . . . . . . . . . . . . 1 . . . . . . . . . . . . . . Protector 4 | . . . . . . . . . . . . . . . . . 3 . . . . . . 1 . . . . . . . Researcher 1 | . . . . . . . . . 1 . . . . . . . . . . . . . . . . . . . . . . Sentry 27 | . . . 5 . 6 . . 1 . . . . 1 . . . . . . . 7 . . 1 3 . 1 . . 1 1 Demolisher 3 | . . . . . . . . . . . . . . . . . . . . . . . . . . . . 1 . 2 . Hunter 14 | . . . . . . . . . . . . . . . . . . . . . . . . . . . . 2 4 4 4 Programmer 34 | . . . . . . . . . 1 . . . 1 . . . . 3 . 3 . . . 5 . . 5 . 5 3 8 Cetus Guard 4 | . . . . . . . . . . . . . . . . . . . . . . 4 . . . . . . . . . Enhanced Grunt 1 | . . . . . . . . . . . . . . . . . . . . . . . . 1 . . . . . . . Lightning 6 | . . . . . . . . . . . . . . . . . . . . . . . . 6 . . . . . . . Striker 4 | . . . . . . . . . . . . . . . . . . . . . . . . . . . . 4 . . . Assembled 2 | . . . . . . . . . . . . . . . . . . . . . . . . . . . . . . 2 . Wasp 2 | . . . . . . . . . . . . . . . . . . . 2 . . . . . . . . . . . . Thug 4 | . . . 1 . . . . 1 . . . . . . . . . . . . 2 . . . . . . . . . . Savage 1 | . . . . . . . . . . . . . . 1 . . . . . . . . . . . . . . . . . Martyr 1 | . . . . . . . . . . . . . . . . . . . 1 . . . . . . . . . . . . Guerrilla 1 | . . . . . . . . . . . . . . . . . . . . . 1 . . . . . . . . . . Best Kill Streak 10 | 3 6 3 6 6 4 1 . 1 1 1 . . 2 4 . . 5 3 . 2 2 4 7 5 5 . 2 8 3 10 9 Combat Bots Only 10 | . 2 3 6 3 4 . . 1 1 1 . . 1 4 . . 5 3 . 2 2 3 . 3 3 . 2 8 3 10 8 Max Kills in Single Turn 5 | 1 2 2 4 1 2 1 . 1 1 1 . . 2 3 . . 4 1 1 1 2 1 1 2 1 . 1 3 1 1 5 Gunslinging . | . . . . . . . . . . . . . . . . . . . . . . . . . . . . . . . . Exploded 4 | . 1 2 4 . 2 . . . . . . . . 3 . . 4 . . . 1 1 . . . . . 3 . . 4 Melee . | . . . . . . . . . . . . . . . . . . . . . . . . . . . . . . . . Uniques/NPCs Destroyed . | . . . . . . . . . . . . . . . . . . . . . . . . . . . . . . . . Combat | -11 -10 -10 -9 -9 -8 -7 -7 -7 -7 -7 -7 -6 -6 -6 -6 -6 -5 -5 -5 -5 -5 -5 -5 -5 -4 -4 -4 -3 -3 -2 -1 -------- Run | Yrd Mat Min Mat Min Mat Fac Was Fac Low Low Zio Pro Fac Low Low Dat Pro Fac Was Fac Ext Cet Arc Hub Fac Was Fac Res Qua Res Acc Hostile Shots Fired 1152 | . 74 17 50 53 137 . . 20 12 . . . 25 2 . . . 15 1 23 25 . 1 105 11 . 123 112 80 157 109 Missed 358 | . 23 6 21 15 42 . . 8 6 . . . 12 . . . . 5 . 11 12 . 1 13 5 . 37 35 28 38 40 Hits 794 | . 51 11 29 38 95 . . 12 6 . . . 13 2 . . . 10 1 12 13 . . 92 6 . 86 77 52 119 69 Melee 15 | . . . . 2 . . . . . . . . . . . . . . 1 . . . . . . . . 5 . 7 . Projectile 779 | . 51 11 29 36 95 . . 12 6 . . . 13 2 . . . 10 . 12 13 . . 92 6 . 86 72 52 112 69 AOE 15 | . . . . . . . . . . . . . . . . . . . . . . . . . . . . 4 . 11 . Critical Strikes 55 | . 1 . 1 1 3 . . . . . . . . . . . . 1 1 2 . . . 19 . . 7 12 . 4 3 Actively Blocked 1 | . . . . . . . . . . . . . . . . . . . . . . . . . . . 1 . . . . Part Disruptions 4 | . . . . . . . . . . . . . . . . . . . . . . . . 1 . . . . 2 1 . Damage Taken 12720 | . 657 181 314 398 1460 . . 180 97 . . . 157 31 . . . 109 96 172 281 . . 409 115 . 1265 1767 662 2866 1503 Core 1493 | . 120 22 40 71 180 . . . . . . . 29 . . . . 11 82 30 . . . 10 . . 418 182 48 152 98 Absorbed by Shields 1166 | . . . . . . . . . . . . . . . . . . . . . 23 . . . . . 250 282 401 210 . Redirected to Shielding 340 | . . . . . . . . . . . . . . . . . . . . . . . . . . . 157 . . 183 . Ignored by Resistances 3453 | . . . 44 32 3 . . . 9 . . . 39 . . . . 94 . 102 8 . . 2777 20 . . . . 177 148 Regen/Repaired (Parts) 667 | . 55 . . . . . . 90 . . . . . . . . 31 . 48 66 . . . . . . 60 . 291 26 . Core Remaining (%) 80 | 100 . 43 . 72 67 . . . . . . 100 . . . . 96 . . . . . . 86 . . 63 . 82 87 92 Volleys Fired 1605 | 7 93 12 62 42 127 2 2 69 23 30 1 . 59 23 1 . 105 36 27 118 126 23 35 101 25 6 104 57 70 81 138 Largest 3 | 2 2 2 2 2 2 2 2 2 2 2 1 . 2 2 1 . 2 2 2 2 2 1 2 2 2 2 2 3 1 2 2 Hottest 394 | 60 85 85 91 116 143 110 83 115 115 115 40 . 165 170 90 . 170 170 170 178 161 81 116 133 133 133 133 225 113 394 300 Shots Fired 2150 | 8 160 24 122 84 238 4 4 93 29 48 1 . 69 30 1 . 107 45 36 133 129 23 38 195 26 12 129 75 68 80 139 Gun 885 | 8 129 20 92 34 103 4 4 60 15 19 . . 13 7 . . 9 19 21 17 18 . 33 173 1 6 41 32 . . 7 Cannon 1204 | . 29 . 27 50 130 . . 32 10 29 1 . 56 20 1 . 98 26 15 116 90 23 5 22 25 6 88 42 68 80 115 Launcher 61 | . 2 4 3 . 5 . . 1 4 . . . . 3 . . . . . . 21 . . . . . . 1 . . 17 Special . | . . . . . . . . . . . . . . . . . . . . . . . . . . . . . . . . Kinetic 841 | 7 153 10 60 42 42 . 2 51 10 29 1 . 37 . . . 96 . . . . . 33 173 1 6 41 18 . . 29 Thermal 954 | . 5 10 59 42 191 4 2 41 15 19 . . 32 27 1 . 11 45 36 133 27 . . 22 11 6 82 36 47 42 8 Explosive 44 | . 2 4 3 . 5 . . 1 4 . . . . 3 . . . . . . 4 . . . . . . 1 . . 17 Electromagnetic 311 | 1 . . . . . . . . . . . . . . . . . . . . 98 23 5 . 14 . 6 20 21 38 85 Robot Hit Streak 22 | 5 8 13 11 11 22 6 1 6 9 4 . . 16 6 . . 7 8 5 6 13 11 17 14 9 4 12 11 9 12 10 Robot Miss Streak 5 | 1 4 2 4 5 3 . 1 3 2 3 . . 1 2 . . 4 1 2 4 1 1 1 4 1 3 2 2 3 2 2 Penetration Max 1 | . . . . . . . . . . . . . . . . . . . . . . . . 1 1 . 1 . . . . Secondary Targets 4 | . . 1 . . . . . . . . . . . . . . . . . . . . . 1 . . 1 1 . . . Max Gunslinging Chain 1 | . . 1 . . . . . . . . . . . . . . . . . . . . . 1 . . 1 1 . . . Capacitor 252 | . . . . . . . . . . . . . . . . . . . . . . . . . . . . 15 68 77 92 Shots Hit Robots 1072 | 6 96 16 75 51 164 4 2 38 16 17 . . 21 10 . . 67 14 18 20 50 12 35 98 10 7 38 31 30 47 79 Core Hits 548 | 4 43 8 40 22 65 1 . 18 6 6 . . 10 6 . . 30 6 8 7 45 12 19 64 13 4 16 19 12 13 51 Critical Kills 23 | . . . 1 1 3 . . . . . . . . . . . 1 . 1 1 . . 3 8 . . 2 1 . 1 . Critical Parts Destroyed 20 | . 1 1 1 . . . . . . . . . . . . . 2 1 . . 1 . 2 8 . . 1 2 . . . Critical Strikes 68 | . 2 1 4 1 6 . . 2 3 1 . . 1 . . . 10 1 1 1 1 . 5 17 3 . 3 4 . 1 . Burn 11 | . . . 2 . 3 . . 2 2 . . . 1 . . . . . . . . . . . . . . 1 . . . Meltdown 6 | . . . . 1 3 . . . . . . . . . . . . . . 1 . . . . . . 1 . . . . Destroy 38 | . 1 1 2 . . . . . . . . . . . . . 3 1 1 . 1 . 5 17 . . 2 3 . 1 . Blast 10 | . 1 . . . . . . . 1 1 . . . . . . 7 . . . . . . . . . . . . . . Corrupt 3 | . . . . . . . . . . . . . . . . . . . . . . . . . 3 . . . . . . Melee Attacks 7 | . . . . . . . . . . . . . . . . . . . . . . . . . . . . . 5 2 . Impact . | . . . . . . . . . . . . . . . . . . . . . . . . . . . . . . . . Slashing 7 | . . . . . . . . . . . . . . . . . . . . . . . . . . . . . 5 2 . Piercing . | . . . . . . . . . . . . . . . . . . . . . . . . . . . . . . . . Sneak Attacks . | . . . . . . . . . . . . . . . . . . . . . . . . . . . . . . . . Combat Hostiles . | . . . . . . . . . . . . . . . . . . . . . . . . . . . . . . . . Follow-up Attacks . | . . . . . . . . . . . . . . . . . . . . . . . . . . . . . . . . Damage Inflicted 37745 | 72 1433 463 1431 931 3722 76 42 823 382 449 . . 826 639 . . 3177 431 658 668 3259 886 985 3611 1054 263 1451 1283 1512 2263 4955 Guns 12181 | 72 855 208 816 289 1322 76 42 726 182 150 . . 295 97 . . 118 431 501 322 293 . 793 3110 23 128 928 404 . . . Cannons 18045 | . 372 . 389 642 1873 . . 77 192 299 . . 274 161 . . 2339 . 157 346 1644 710 192 381 1031 135 497 462 1512 2263 2097 Explosions 7493 | . 206 255 226 . 527 . . 20 8 . . . 257 381 . . 720 . . . 1322 176 . 120 . . . 417 . . 2858 Melee . | . . . . . . . . . . . . . . . . . . . . . . . . . . . . . . . . Ramming 26 | . . . . . . . . . . . . . . . . . . . . . . . . . . . 26 . . . . Kinetic 11445 | 72 1196 97 487 338 358 . 42 293 192 299 . . 210 . . . 2307 . . . . . 793 3110 23 128 928 260 . . 312 Thermal 12516 | . 31 111 718 593 2837 76 . 510 182 150 . . 616 258 . . 870 431 658 668 528 176 . 381 97 135 282 175 887 940 206 Explosive 4957 | . 206 255 226 . 527 . . 20 8 . . . . 381 . . . . . . 265 . . . . . . 417 . . 2652 Electromagnetic 8801 | . . . . . . . . . . . . . . . . . . . . . 2466 710 192 120 934 . 215 431 625 1323 1785 Impact . | . . . . . . . . . . . . . . . . . . . . . . . . . . . . . . . . Slashing . | . . . . . . . . . . . . . . . . . . . . . . . . . . . . . . . . Piercing . | . . . . . . . . . . . . . . . . . . . . . . . . . . . . . . . . Highest Corruption 28 | . 1 1 . . 1 . 15 20 21 21 21 . . . . . . 1 1 1 . . 14 8 . . 19 9 28 10 5 Average Corruption 7 | . 1 1 . . 1 . 7 16 20 21 21 . . . . . . 1 1 1 . . 6 6 . . 9 4 12 8 3 Corruption Purged 24 | . . . . . . . . . . . . . . . . . . . . 1 . . 23 . . . . . . . . Corruption Blocked . | . . . . . . . . . . . . . . . . . . . . . . . . . . . . . . . . Effects 397 | . 8 18 . . 9 . 2 79 22 36 2 . . . . . . 4 3 . . . 17 64 . . 24 32 45 11 21 Message Errors 82 | . 1 2 . . . . 2 20 5 9 . . . . . . . . . . . . 3 15 . . 9 5 6 1 4 Matter Fused 97 | . 1 9 . . 2 . . 22 6 5 1 . . . . . . 2 . . . . 8 11 . . 6 8 11 . 5 Heat Flow Errors 53 | . 1 1 . . 1 . . 13 4 6 . . . . . . . . 1 . . . 1 4 . . 2 5 8 3 3 Energy Discharges 49 | . 3 4 . . 3 . . 6 5 4 . . . . . . . 1 . . . . 1 7 . . . 4 4 3 4 Parts Rejected 2 | . . . . . 1 . . . . . . . . . . . . . . . . . . 1 . . . . . . . Parts Fused 7 | . . . . . 1 . . . 1 . . . . . . . . . . . . . . 2 . . 1 1 1 . . Data Loss (minor) 53 | . 2 2 . . . . . 11 . 3 . . . . . . . . . . . . 4 14 . . 3 3 8 1 2 Data Loss (major) 17 | . . . . . 1 . . 1 . 2 1 . . . . . . . 1 . . . . 4 . . . 3 3 . 1 Misfires 8 | . . . . . . . . 3 . . . . . . . . . 1 . . . . . 1 . . 1 . 1 . 1 Alerts 10 | . . . . . . . . 2 . 1 . . . . . . . . 1 . . . . 3 . . 2 1 . . . Misdirections 4 | . . . . . . . . . 1 2 . . . . . . . . . . . . . . . . . . . 1 . Weapon Failures 15 | . . . . . . . . 1 . 4 . . . . . . . . . . . . . 2 . . . 2 3 2 1 Overload Shots 11 | . . . . . . . . . . . . . . . . . . . . . . . . . . . . 4 . . 7 Overflow Damage 1063 | . 83 6 . 1 97 . . . 28 . . . 150 54 . . 31 . . 24 10 25 1 . 33 6 58 29 43 8 376 Projectiles 435 | . . . . 1 18 . . . 28 . . . 18 . . . 31 . . 24 . 25 1 . 33 6 58 28 43 8 113 Explosions 628 | . 83 6 . . 79 . . . . . . . 132 54 . . . . . . 10 . . . . . . 1 . . 263 Melee . | . . . . . . . . . . . . . . . . . . . . . . . . . . . . . . . . Knockbacks 10 | . 5 . . 2 . . . . . . . . 1 . . . 1 . . . . . . . . . . . . . 1 Impact . | . . . . . . . . . . . . . . . . . . . . . . . . . . . . . . . . Kinetic 9 | . 4 . . 2 . . . . . . . . 1 . . . 1 . . . . . . . . . . . . . 1 Secondary 1 | . 1 . . . . . . . . . . . . . . . . . . . . . . . . . . . . . . Self-Inflicted Damage 180 | . . 56 . . . . . . . . . . . . . . . . . . . . . 9 . . 12 . . . 103 Shots 5 | . . 2 . . . . . . . . . . . . . . . . . . . . . 1 . . . . . . 2 Rammed 5 | . . . . . . . . . . . . . . . . . . . . . . . . . . . 5 . . . . Targets Rammed 5 | . . . . . . . . . . . . . . . . . . . . . . . . . . . 5 . . . . Kicked . | . . . . . . . . . . . . . . . . . . . . . . . . . . . . . . . . Crushed . | . . . . . . . . . . . . . . . . . . . . . . . . . . . . . . . . Highest Temperature 428 | . 166 216 24 192 89 . . 403 202 267 . . 83 180 2 . 96 68 127 293 100 277 133 302 212 428 353 199 351 367 268 Average Temperature 73 | . 83 63 7 60 21 . . 111 49 59 . . 23 39 1 . 49 16 51 35 22 141 58 82 71 177 64 64 100 111 84 Received Heat Transfer 1990 | . 321 51 117 150 801 . . 24 . . . . 18 . . . . 9 9 9 76 . . 27 9 . . 162 . 180 27 Effects 9 | . . . . . . . . . . . . . . . . . . . . 1 . . . . . 4 1 . 1 2 . Shutdowns 3 | . . . . . . . . . . . . . . . . . . . . . . . . . . 3 . . . . . Energy Bleed 2 | . . . . . . . . . . . . . . . . . . . . 1 . . . . . 1 . . . . . Interference 2 | . . . . . . . . . . . . . . . . . . . . . . . . . . . . . . 2 . Short Circuit 2 | . . . . . . . . . . . . . . . . . . . . . . . . . . . 1 . 1 . . Siege Activations . | . . . . . . . . . . . . . . . . . . . . . . . . . . . . . . . . Martial Activations . | . . . . . . . . . . . . . . . . . . . . . . . . . . . . . . . . Shielding Activations . | . . . . . . . . . . . . . . . . . . . . . . . . . . . . . . . . Robots Disrupted 1 | . . . . . . . . . . . . . . . . . . . . . . 1 . . . . . . . . . Combat Hostiles 1 | . . . . . . . . . . . . . . . . . . . . . . 1 . . . . . . . . . Robots Corrupted 35 | . . . . . . . . . . . . . . . . . . . . . 9 3 . . 2 . 1 2 3 6 9 Combat Hostiles 32 | . . . . . . . . . . . . . . . . . . . . . 8 3 . . 2 . . 2 3 6 8 Parts Fried 63 | . . . . . . . . . . . . . . . . . . . . . 12 5 2 1 8 . 1 1 4 10 19 Impact Corruptions . | . . . . . . . . . . . . . . . . . . . . . . . . . . . . . . . . Robots Melted 9 | . . . . 1 6 . . . . . . . . . . . . . . 1 . . . . . . 1 . . . . Combat Hostiles 8 | . . . . 1 5 . . . . . . . . . . . . . . 1 . . . . . . 1 . . . . Parts Melted 51 | . . . 2 1 20 1 . 1 . . . . . 1 . . 2 3 2 5 . . . 2 1 . 3 2 2 3 . Heat Transferred 19239 | . 74 259 1665 1073 5439 148 . 1147 518 259 . . 855 398 . . 1077 633 1066 894 513 150 . 500 150 200 400 450 666 555 150 Parts Sabotaged . | . . . . . . . . . . . . . . . . . . . . . . . . . . . . . . . . Parts Stolen . | . . . . . . . . . . . . . . . . . . . . . . . . . . . . . . . . Parts Stripped . | . . . . . . . . . . . . . . . . . . . . . . . . . . . . . . . . Power Chain Reactions 8 | . . . . . . . . . . . . . . . . . . . . . 4 1 . . . . . . . . 3 Alert | -11 -10 -10 -9 -9 -8 -7 -7 -7 -7 -7 -7 -6 -6 -6 -6 -6 -5 -5 -5 -5 -5 -5 -5 -5 -4 -4 -4 -3 -3 -2 -1 ------- Run | Yrd Mat Min Mat Min Mat Fac Was Fac Low Low Zio Pro Fac Low Low Dat Pro Fac Was Fac Ext Cet Arc Hub Fac Was Fac Res Qua Res Acc Maximum Alert Level 3 | . . . 1 . 2 . . . . . . . . . . . . . . . 3 2 2 2 1 . 1 1 . . 3 Low Security (%) 71 | 100 100 100 71 100 50 100 100 100 . . . . 100 . . . . 100 100 100 48 . 1 19 44 100 68 99 100 100 19 Level 1 16 | . . . 28 . 34 . . . . . . . . . . . . . . . 29 . 82 38 55 . 31 . . . 15 Level 2 11 | . . . . . 14 . . . . . . . . . . . . . . . 20 100 16 41 . . . . . . 45 Level 3 1 | . . . . . . . . . . . . . . . . . . . . . 1 . . . . . . . . . 20 Level 4 . | . . . . . . . . . . . . . . . . . . . . . . . . . . . . . . . . Level 5 . | . . . . . . . . . . . . . . . . . . . . . . . . . . . . . . . . High Security . | . . . . . . . . . . . . . . . . . . . . . . . . . . . . . . . . Max Security . | . . . . . . . . . . . . . . . . . . . . . . . . . . . . . . . . Peak Influence 967 | 5 111 106 287 94 427 179 53 44 . . . . 134 . . . . 127 30 106 967 644 423 584 265 89 330 201 106 178 763 Initial 540 | . 3 19 . 94 . 179 53 . . . . . 31 . . . . 127 9 . 40 540 232 68 207 89 . 120 86 51 84 Average 147 | 1 49 13 117 26 210 170 26 6 . . . . 32 . . . . 68 1 38 256 566 317 360 197 28 98 76 38 74 436 Influence Increases 12804 | 15 567 163 609 302 949 5 . 169 95 235 . 90 284 90 . . 525 145 56 600 2383 334 321 1508 280 6 654 396 385 427 1211 Destroy 0b10 Robot/C 5200 | . 260 100 380 240 600 . . 20 20 60 . 80 40 80 . . 300 60 . 140 820 160 80 400 100 . 120 220 180 240 500 Destroy 0b10 Robot/NC 655 | 15 80 . 40 20 75 5 . 35 5 . . . 25 . . . 30 . . 30 50 10 45 70 20 . 25 10 10 5 50 Destroy Leader 1030 | . 78 20 98 40 144 . . 14 10 10 . 10 22 10 . . . 20 . 24 94 . . 118 34 . 42 40 44 62 96 Allied During Kill 1211 | . . . . . . . . . . . . . . . . . . . . 73 600 148 105 285 . . . . . . . Successful Hack 357 | . 21 7 32 . 14 . . 53 . . . . 32 . . . . . . 44 . . . 7 52 . 45 50 . . . Disable Machine 930 | . 45 15 . . 30 . . 15 . . . . 105 . . . . . . 30 120 . 60 225 30 . 30 30 105 45 45 Destroy Structure 1846 | . 38 21 14 2 41 . . 17 . . . . 45 . . . . 50 56 184 144 16 16 358 14 6 152 46 46 75 505 Partial Spotted 120 | . . . . . . . . 15 . . . . . . . . . . . . 60 . . . . . 45 . . . . Lose Combat Pursuer 1455 | . 45 . 45 . 45 . . . 60 165 . . 15 . . . 195 15 . 75 495 . 15 45 30 . 195 . . . 15 Influence Decreases 12041 | 10 521 214 365 546 553 247 154 161 59 224 55 40 275 149 . . 322 320 84 516 1500 721 704 1281 447 263 423 473 446 378 590 Entered New Map 2319 | . 2 32 . 150 . 217 101 . 4 9 55 . 19 23 . . . 76 19 . 44 427 348 129 217 168 . 111 68 42 58 Time Decay 7648 | 10 479 182 355 386 493 30 53 161 55 215 . 20 256 116 . . 302 214 45 432 646 254 356 592 230 95 293 302 378 206 492 Search Patrol Dispatched 200 | . . . . . . . . . . . . . . . . . . . . . 100 . . . . . 100 . . . . Lost Part 416 | . 40 . 10 10 60 . . . . . . . . 10 . . . 10 . 6 . . . 10 . . 30 60 . 130 40 Lost Ally 558 | . . . . . . . . . . . . 20 . . . . 20 20 20 78 260 40 . 100 . . . . . . . Purge Threat 900 | . . . . . . . . . . . . . . . . . . . . . 450 . . 450 . . . . . . . Squads Dispatched 72 | . 4 1 3 . 6 . . 5 . . . . 3 . . . . 2 . 7 2 . . 6 3 . 11 9 3 2 5 Investigation 18 | . 1 1 . . 1 . . . . . . . . . . . . . . 3 1 . . . 2 . 4 5 . . . Extermination 24 | . . . . . . . . 3 . . . . 2 . . . . 1 . 3 . . . 3 1 . 5 . 2 1 3 Reinforcement 24 | . 3 . 3 . 2 . . 2 . . . . 1 . . . . 1 . 1 1 . . 1 . . 2 4 1 1 1 Assault 3 | . . . . . . . . . . . . . . . . . . . . . . . . 2 . . . . . . 1 Garrison 3 | . . . . . 3 . . . . . . . . . . . . . . . . . . . . . . . . . . Intercept . | . . . . . . . . . . . . . . . . . . . . . . . . . . . . . . . . Searches Triggered 2 | . . . . . . . . . . . . . . . . . . . . . 1 . . . . . 1 . . . . Construction Impeded 4 | . . . . . . . . 1 . . . . 1 . . . . . . . 1 . . . . . 1 . . . . Haulers Reinforced 3 | . . . . . . . . . . . . . . . . . . . . . . . . . . . . 1 . 1 1 Active Scanning Responses . | . . . . . . . . . . . . . . . . . . . . . . . . . . . . . . . . Cargo Convoy Interrupts . | . . . . . . . . . . . . . . . . . . . . . . . . . . . . . . . . Stealth | -11 -10 -10 -9 -9 -8 -7 -7 -7 -7 -7 -7 -6 -6 -6 -6 -6 -5 -5 -5 -5 -5 -5 -5 -5 -4 -4 -4 -3 -3 -2 -1 --------- Run | Yrd Mat Min Mat Min Mat Fac Was Fac Low Low Zio Pro Fac Low Low Dat Pro Fac Was Fac Ext Cet Arc Hub Fac Was Fac Res Qua Res Acc Distress Signals 30 | . 2 . 3 . 2 . . 1 . . . . . . . . 1 1 . 2 3 3 . 5 1 . 1 5 . . . Communications Jammed 8 | . . . . . . . . . . . . . . . . . . . . . . . . . . . . 1 1 . 6 Distress Signals 8 | . . . . . . . . . . . . . . . . . . . . . . . . . . . . 1 1 . 6 Times Spotted 474 | . 26 5 27 12 42 . 6 13 5 12 . . 4 3 3 . 57 5 8 19 55 7 15 35 12 . 16 25 14 21 27 Peak Tracking Total 11 | . 4 3 4 3 4 . 6 2 4 4 . . 1 3 3 . 11 3 6 4 5 5 1 5 6 . 5 5 3 6 4 Tactical Retreats 65 | . 3 . 1 . 1 . . . 1 6 . . 1 . . . 7 1 1 3 24 . 1 3 1 . 9 1 . . 1 Traps | -11 -10 -10 -9 -9 -8 -7 -7 -7 -7 -7 -7 -6 -6 -6 -6 -6 -5 -5 -5 -5 -5 -5 -5 -5 -4 -4 -4 -3 -3 -2 -1 ------- Run | Yrd Mat Min Mat Min Mat Fac Was Fac Low Low Zio Pro Fac Low Low Dat Pro Fac Was Fac Ext Cet Arc Hub Fac Was Fac Res Qua Res Acc Traps Triggered 22 | . 2 . . . . 1 . 3 . . . . 1 . . . . 1 . 2 6 . . . 1 . 4 . . 1 . Indirectly 5 | . . . . . . . . . . . . . . . . . . . . . 5 . . . . . . . . . . Trap Hack Attempts . | . . . . . . . . . . . . . . . . . . . . . . . . . . . . . . . . Triggered . | . . . . . . . . . . . . . . . . . . . . . . . . . . . . . . . . Disarmed . | . . . . . . . . . . . . . . . . . . . . . . . . . . . . . . . . Reprogrammed . | . . . . . . . . . . . . . . . . . . . . . . . . . . . . . . . . Reused . | . . . . . . . . . . . . . . . . . . . . . . . . . . . . . . . . Traps Extracted . | . . . . . . . . . . . . . . . . . . . . . . . . . . . . . . . . Installed . | . . . . . . . . . . . . . . . . . . . . . . . . . . . . . . . . Triggered . | . . . . . . . . . . . . . . . . . . . . . . . . . . . . . . . . Machines | -11 -10 -10 -9 -9 -8 -7 -7 -7 -7 -7 -7 -6 -6 -6 -6 -6 -5 -5 -5 -5 -5 -5 -5 -5 -4 -4 -4 -3 -3 -2 -1 ---------- Run | Yrd Mat Min Mat Min Mat Fac Was Fac Low Low Zio Pro Fac Low Low Dat Pro Fac Was Fac Ext Cet Arc Hub Fac Was Fac Res Qua Res Acc Machines Disabled 66 | . 3 2 . . 2 . . 1 . . . . 7 . . . 1 . . 2 10 . 4 15 2 . 2 2 7 3 3 Max in Single Turn 8 | . 1 1 . . 1 . . 1 . . . . 7 . . . 1 . . 1 2 . 1 8 1 . 1 1 1 1 1 Garrison Access 13 | . . . . . . . . 1 . . . . 4 . . . . 1 . 2 . . . 2 . . 2 1 . . . Network Hub 1 | . . . . . . . . . . . . . . . . . . . . . . . . 1 . . . . . . . Energy Cycler 1 | . . . . . . . . . . . . . . . . . . . . . 1 . . . . . . . . . . Machines Repaired . | . . . . . . . . . . . . . . . . . . . . . . . . . . . . . . . . Machines Dismantled . | . . . . . . . . . . . . . . . . . . . . . . . . . . . . . . . . Machines Sabotaged . | . . . . . . . . . . . . . . . . . . . . . . . . . . . . . . . . Overloaded Fab Kills . | . . . . . . . . . . . . . . . . . . . . . . . . . . . . . . . . Hacking | -11 -10 -10 -9 -9 -8 -7 -7 -7 -7 -7 -7 -6 -6 -6 -6 -6 -5 -5 -5 -5 -5 -5 -5 -5 -4 -4 -4 -3 -3 -2 -1 --------- Run | Yrd Mat Min Mat Min Mat Fac Was Fac Low Low Zio Pro Fac Low Low Dat Pro Fac Was Fac Ext Cet Arc Hub Fac Was Fac Res Qua Res Acc Machines Accessed 117 | . 6 2 4 . 8 . . 11 . 2 1 . 12 1 . 4 3 2 . 16 5 . . 8 5 . 16 5 1 3 2 Terminals 64 | . 5 1 3 . 7 . . 5 . . . . 6 . . . 1 . . 10 5 . . 6 3 . 8 2 . 1 1 Fabricators 9 | . . . . . . . . . . . . . . . . . . . . 2 . . . . 2 . 3 2 . . . Repair Stations 10 | . 1 . . . . . . 2 . . . . . . . . 1 . . 2 . . . . . . 3 . . 1 . Recycling Units 3 | . . . . . . . . . . . . . 1 . . . 1 . . . . . . . . . . . . . 1 Scanalyzers 7 | . . . 1 . 1 . . 2 . . . . 1 . . . . 1 . . . . . . . . . . . 1 . Garrison Access 15 | . . . . . . . . 2 . . . . 4 . . . . 1 . 2 . . . 2 . . 2 1 1 . . Total Hacks 298 | . 11 2 11 . 20 . . 21 . 7 3 . 19 1 . 30 4 2 . 34 9 . . 20 21 . 54 16 1 8 4 Successful 189 | . 8 2 8 . 6 . . 10 . 7 3 . 12 1 . 30 4 2 . 23 5 . . 9 13 . 35 10 . 1 . Failed 107 | . 3 . 3 . 14 . . 11 . . . . 7 . . . . . . 11 4 . . 11 7 . 19 6 1 6 4 Catastrophic 19 | . . . . . 2 . . 1 . . . . . . . . . . . 2 . . . 1 2 . 4 3 . 2 2 Database Lockouts 2 | . . . . . . . . . . . . . . . . . . . . . . . . . 1 . . . . 1 . Manual 121 | . 7 1 6 . 11 . . 3 . . . . 5 . . . . . . 16 7 1 . 13 19 . 22 7 . 3 . Terminals 146 | . 9 1 7 . 17 . . 8 . . . . 12 . . . 1 . . 19 9 . . 16 17 . 18 8 . 2 2 Fabricators 39 | . . . . . . . . . . . . . . . . . . . . 6 . . . . 4 . 23 6 . . . Repair Stations 23 | . 2 . . . . . . 4 . . . . . . . . 2 . . 5 . . . . . . 9 . . 1 . Recycling Units 4 | . . . . . . . . . . . . . 1 . . . 1 . . . . . . . . . . . . . 2 Scanalyzers 21 | . . . 4 . 3 . . 6 . . . . 2 . . . . 1 . . . . . . . . . . . 5 . Garrison Access 23 | . . . . . . . . 3 . . . . 4 . . . . 1 . 4 . . . 4 . . 4 2 1 . . Terminal Hacks 92 | . 3 2 2 . 2 . . 1 . 7 3 . 4 1 . 30 1 . . 9 4 . . 6 8 . 6 3 . . . Record 17 | . . . . . . . . . . 6 . . . . . 11 . . . . . . . . . . . . . . . Part Schematic 25 | . 2 1 . . 1 . . . . . 3 . . . . 12 . . . 2 . . . 1 2 . 1 . . . . Robot Schematic 4 | . . . . . . . . . . . . . . . . 4 . . . . . . . . . . . . . . . Robot Analysis 2 | . 1 . . . . . . . . . . . . . . . . . . . . . . . . . 1 . . . . Prototype ID Bank 6 | . . . . . . . . . . . . . 1 . . 3 . . . 1 1 . . . . . . . . . . Open Door 5 | . . 1 . . . . . . . 1 . . . 1 . . 1 . . 1 . . . . . . . . . . . Level Access Points 1 | . . . 1 . . . . . . . . . . . . . . . . . . . . . . . . . . . . Branch Access Points 8 | . . . 1 . 1 . . 1 . . . . 1 . . . . . . 1 . . . . 1 . 1 1 . . . Terminal Index 2 | . . . . . . . . . . . . . . . . . . . . 1 . . . . 1 . . . . . . Fabricator Index 3 | . . . . . . . . . . . . . . . . . . . . 1 . . . . 1 . . 1 . . . Alert Level 1 | . . . . . . . . . . . . . . . . . . . . . . . . . 1 . . . . . . Unreport Threat 6 | . . . . . . . . . . . . . . . . . . . . . 3 . . 3 . . . . . . . Locate Traps 2 | . . . . . . . . . . . . . 1 . . . . . . . . . . 1 . . . . . . . Recall Extermination 3 | . . . . . . . . . . . . . . . . . . . . 1 . . . . 1 . 1 . . . . Recall Assault 1 | . . . . . . . . . . . . . . . . . . . . . . . . 1 . . . . . . . Registered Components 5 | . . . . . . . . . . . . . 1 . . . . . . 1 . . . . 1 . 1 1 . . . Zone Layout 1 | . . . . . . . . . . . . . . . . . . . . . . . . . . . 1 . . . . Fabricator Hacks 25 | . . . . . . . . . . . . . . . . . . . . 4 . . . . 2 . 14 5 . . . Network Status 1 | . . . . . . . . . . . . . . . . . . . . . . . . . . . 1 . . . . Load Schematic 16 | . . . . . . . . . . . . . . . . . . . . 3 . . . . 2 . 8 3 . . . Build 8 | . . . . . . . . . . . . . . . . . . . . 1 . . . . . . 5 2 . . . Repair Station Hacks 17 | . 2 . . . . . . 4 . . . . . . . . 2 . . 4 . . . . . . 5 . . . . Scan Component 10 | . 1 . . . . . . 2 . . . . . . . . 1 . . 2 . . . . . . 4 . . . . Repair 7 | . 1 . . . . . . 2 . . . . . . . . 1 . . 2 . . . . . . 1 . . . . Recycling Unit Hacks 1 | . . . . . . . . . . . . . . . . . 1 . . . . . . . . . . . . . . Retrieve Components 1 | . . . . . . . . . . . . . . . . . 1 . . . . . . . . . . . . . . Scanalyzer 12 | . . . 4 . 1 . . 3 . . . . 2 . . . . 1 . . . . . . . . . . . 1 . Insert Component 1 | . . . . . . . . . . . . . 1 . . . . . . . . . . . . . . . . . . Retrieve Study 11 | . . . 4 . 1 . . 3 . . . . 1 . . . . 1 . . . . . . . . . . . 1 . Garrison Access Hacks 13 | . . . . . . . . 1 . . . . 4 . . . . 1 . 2 . . . 2 . . 2 1 . . . Seal Access 13 | . . . . . . . . 1 . . . . 4 . . . . 1 . 2 . . . 2 . . 2 1 . . . Unauthorized Hacks 29 | . 3 . 2 . 3 . . 1 . . . . 2 . . . . . . 4 1 . . 1 3 . 8 1 . . . Terminals 19 | . 3 . 2 . 3 . . 1 . . . . 2 . . . . . . 2 1 . . 1 1 . 2 1 . . . Track 1 | . . . . . . . . . . . . . . . . . . . . . . . . 1 . . . . . . . Assimilate 1 | . . . . . . . . . . . . . . . . . . . . . . . . . . . 1 . . . . Botnet 15 | . 2 . 2 . 2 . . 1 . . . . 2 . . . . . . 2 1 . . . 1 . 1 1 . . . Operators 2 | . 1 . . . 1 . . . . . . . . . . . . . . . . . . . . . . . . . . Fabricators 10 | . . . . . . . . . . . . . . . . . . . . 2 . . . . 2 . 6 . . . . Prioritize 3 | . . . . . . . . . . . . . . . . . . . . . . . . . . . 3 . . . . Recompile 7 | . . . . . . . . . . . . . . . . . . . . 2 . . . . 2 . 3 . . . . Repair Stations . | . . . . . . . . . . . . . . . . . . . . . . . . . . . . . . . . Recycling Units . | . . . . . . . . . . . . . . . . . . . . . . . . . . . . . . . . Scanalyzers . | . . . . . . . . . . . . . . . . . . . . . . . . . . . . . . . . Garrison Access . | . . . . . . . . . . . . . . . . . . . . . . . . . . . . . . . . Data Cores Recovered 3 | . . . . . . . . 1 . . . . . . . . . . . 2 . . . . . . . . . . . Used 1 | . . . . . . . . . . . . . . . . . . . . 1 . . . . . . . . . . . Hacking Detections 74 | . 3 . 2 . 7 . . 9 . . . . 8 . . . 2 . . 10 3 1 . 5 2 . 13 3 1 3 2 Full Trace Events 2 | . . . . . 1 . . . . . . . . . . . . . . . . . . . . . . 1 . . . Feedback Events 1 | . . . . . 1 . . . . . . . . . . . . . . . . . . . . . . . . . . Corruption 1 | . . . . . 1 . . . . . . . . . . . . . . . . . . . . . . . . . . Feedback Blocked . | . . . . . . . . . . . . . . . . . . . . . . . . . . . . . . . . Robot Schematics Acquired 8 | . . . . . . . . . . . 4 . . . . 4 . . . . . . . . . . . . . . . Robots Built . | . . . . . . . . . . . . . . . . . . . . . . . . . . . . . . . . Authchips . | . . . . . . . . . . . . . . . . . . . . . . . . . . . . . . . . Time . | . . . . . . . . . . . . . . . . . . . . . . . . . . . . . . . . Total Robot Build Rating . | . . . . . . . . . . . . . . . . . . . . . . . . . . . . . . . . Part Schematics Acquired 38 | . 1 1 . . 1 . . . . . 17 . . . . 12 . . . 2 . . . 1 2 . 1 . . . . Parts Built 10 | . . . . . . . . . . . . . . . . . . . . 2 . . . . . . 5 3 . . . Authchips 7 | . . . . . . . . . . . . . . . . . . . . 1 . . . . . . 5 1 . . . Time 428 | . . . . . . . . . . . . . . . . . . . . 47 . . . . . . 247 134 . . . Total Part Build Rating 58 | . . . . . . . . . . . . . . . . . . . . 10 . . . . . . 29 19 . . . Part Studies Acquired 11 | . . . 4 . 1 . . 3 . . . . 1 . . . . 1 . . . . . . . . . . . 1 . Parts Repaired 7 | . 1 . . . . . . 2 . . . . . . . . 1 . . 2 . . . . . . 1 . . . . Time 275 | . 26 . . . . . . 124 . . . . . . . . 35 . . 56 . . . . . . 34 . . . . Parts Recycled . | . . . . . . . . . . . . . . . . . . . . . . . . . . . . . . . . Recycled Matter . | . . . . . . . . . . . . . . . . . . . . . . . . . . . . . . . . Retrieved Matter . | . . . . . . . . . . . . . . . . . . . . . . . . . . . . . . . . Retrieved Components 3 | . . . . . . . . . . . . . . . . . 3 . . . . . . . . . . . . . . Parts Scanalyzed . | . . . . . . . . . . . . . . . . . . . . . . . . . . . . . . . . Part Schematics Acquired . | . . . . . . . . . . . . . . . . . . . . . . . . . . . . . . . . Parts Damaged . | . . . . . . . . . . . . . . . . . . . . . . . . . . . . . . . . Bothacking | -11 -10 -10 -9 -9 -8 -7 -7 -7 -7 -7 -7 -6 -6 -6 -6 -6 -5 -5 -5 -5 -5 -5 -5 -5 -4 -4 -4 -3 -3 -2 -1 ------------ Run | Yrd Mat Min Mat Min Mat Fac Was Fac Low Low Zio Pro Fac Low Low Dat Pro Fac Was Fac Ext Cet Arc Hub Fac Was Fac Res Qua Res Acc Used RIF Installer . | . . . . . . . . . . . . . . . . . . . . . . . . . . . . . . . . Robots Hacked . | . . . . . . . . . . . . . . . . . . . . . . . . . . . . . . . . Non-combat . | . . . . . . . . . . . . . . . . . . . . . . . . . . . . . . . . Combat . | . . . . . . . . . . . . . . . . . . . . . . . . . . . . . . . . Robot Hacks Applied . | . . . . . . . . . . . . . . . . . . . . . . . . . . . . . . . . Relay Couplers Released . | . . . . . . . . . . . . . . . . . . . . . . . . . . . . . . . . Fabnet Peak Effective % . | . . . . . . . . . . . . . . . . . . . . . . . . . . . . . . . . Robots Rewired 16 | . . . . . . . . . . . . . . . . . 2 1 . . 13 . . . . . . . . . . Allies Hacked 1 | . . . . . . . . . . . . . . . . . . . . . 1 . . . . . . . . . . Hacks Repelled . | . . . . . . . . . . . . . . . . . . . . . . . . . . . . . . . . Allies | -11 -10 -10 -9 -9 -8 -7 -7 -7 -7 -7 -7 -6 -6 -6 -6 -6 -5 -5 -5 -5 -5 -5 -5 -5 -4 -4 -4 -3 -3 -2 -1 -------- Run | Yrd Mat Min Mat Min Mat Fac Was Fac Low Low Zio Pro Fac Low Low Dat Pro Fac Was Fac Ext Cet Arc Hub Fac Was Fac Res Qua Res Acc Total Allies 63 | . . . . . . . . . . . 7 . . . . . 3 1 19 . 27 5 . . . . 1 . . . . Largest Group 24 | . . . . . . . . . . . 7 7 . . . . 2 1 19 12 24 13 12 9 . . 1 . . . . Highest-Rated Group 852 | . . . . . . . . . . . 182 182 . . . . 105 42 702 464 852 830 677 617 . . 45 . . . . Highest-Rated Ally 159 | . . . . . . . . . . . 39 39 . . . . 64 42 50 46 159 153 96 96 . . 45 . . . . Total Orders 19 | . . . . . . . . . . . . . . . . . 2 . . . 2 6 4 2 . . 3 . . . . STAY 12 | . . . . . . . . . . . . . . . . . 1 . . . 1 4 2 2 . . 2 . . . . FOLLOW 7 | . . . . . . . . . . . . . . . . . 1 . . . 1 2 2 . . . 1 . . . . Ally Attacks 614 | . . . . . . . . . . . . 22 . . . . 12 1 160 56 221 19 34 89 . . . . . . . Total Damage 15131 | . . . . . . . . . . . . 419 . . . . 459 94 4472 1406 4333 592 1107 2249 . . . . . . . Kills 74 | . . . . . . . . . . . . 4 . . . . 3 . 7 7 28 4 7 14 . . . . . . . Allies Corrupted 3 | . . . . . . . . . . . . . . . . . 1 . . . 2 . . . . . . . . . . Allies Melted . | . . . . . . . . . . . . . . . . . . . . . . . . . . . . . . . . Intel | -11 -10 -10 -9 -9 -8 -7 -7 -7 -7 -7 -7 -6 -6 -6 -6 -6 -5 -5 -5 -5 -5 -5 -5 -5 -4 -4 -4 -3 -3 -2 -1 ------- Run | Yrd Mat Min Mat Min Mat Fac Was Fac Low Low Zio Pro Fac Low Low Dat Pro Fac Was Fac Ext Cet Arc Hub Fac Was Fac Res Qua Res Acc Active Infowar (turns) 22854 | . . . . . 356 62 125 1772 487 596 455 156 880 789 263 42 1123 455 617 1790 2437 557 812 1867 489 333 1942 1561 1064 432 1392 Optics 22828 | . . . . . 356 62 125 1772 487 596 455 156 880 789 263 42 1123 455 617 1790 2437 557 812 1867 489 333 1926 1561 1064 422 1392 Sensors 18034 | . . . . . 29 62 124 1760 440 596 450 156 843 776 262 38 1118 358 472 1740 2283 263 300 . 353 94 1841 1345 919 297 1115 IFF 140 | . . . . . . . . . . . . . . . . . . . . . . . . 43 97 . . . . . . Terrain 2096 | . . . . . . . . . . . . . . . . . . . . . . . . . . . 73 62 503 227 1231 Jamming 3838 | . . . . . . . . . . . . . . . . . . . . . . . . . . . . 956 1064 426 1392 ECM 1 | . . . . . . . . . . . . . . . . . . . . . . . . . . . 1 . . . . Robot Analysis Total 2 | . 1 . . . . . . . . . . . . . . . . . . . . . . . . . 1 . . . . Derelict Logs Recovered 15 | . . 2 . 2 . . . . 3 1 1 2 . 2 1 . 1 . . . . . . . . . . . . . . Drone Launches . | . . . . . . . . . . . . . . . . . . . . . . . . . . . . . . . . Drone Recoveries . | . . . . . . . . . . . . . . . . . . . . . . . . . . . . . . . . Exploration | -11 -10 -10 -9 -9 -8 -7 -7 -7 -7 -7 -7 -6 -6 -6 -6 -6 -5 -5 -5 -5 -5 -5 -5 -5 -4 -4 -4 -3 -3 -2 -1 ------------- Run | Yrd Mat Min Mat Min Mat Fac Was Fac Low Low Zio Pro Fac Low Low Dat Pro Fac Was Fac Ext Cet Arc Hub Fac Was Fac Res Qua Res Acc Turns Passed 30382 | 79 1827 1233 982 1236 2488 62 125 1772 487 596 455 156 880 789 263 42 1123 455 617 1790 2437 557 812 1867 489 333 1981 1561 1064 432 1392 Spaces Moved 25325 | 51 874 544 365 719 1331 116 204 2273 841 814 867 362 1098 675 247 84 1210 545 420 2078 2014 365 344 1178 579 386 2157 972 714 224 674 Core 3 | 1 . . . . . . . . . . . . . . . . . . . . . . . . . . 2 . . . . Treads 713 | . . . . . 7 . . . . . . . . . . . . . . . . . . . . . . . . 32 674 Legs 1400 | . . . . . . . . . . . . . . . . . . . . . . . . . . . . 494 714 192 . Wheels 3861 | 50 874 544 365 719 1309 . . . . . . . . . . . . . . . . . . . . . . . . . . Hover 19348 | . . . . . 15 116 204 2273 841 814 867 362 1098 675 247 84 1210 545 420 2078 2014 365 344 1178 579 386 2155 478 . . . Flight . | . . . . . . . . . . . . . . . . . . . . . . . . . . . . . . . . Fastest Speed 38 | 50 95 200 145 145 130 40 40 38 38 38 38 38 38 100 43 43 43 40 42 42 44 48 48 45 45 45 43 100 115 105 160 Average Speed 77 | 88 157 213 173 145 145 40 40 39 38 38 38 39 43 100 93 43 56 40 43 49 52 79 77 102 45 45 54 110 115 120 160 Slowest Speed 1200 | 95 215 215 230 220 320 40 40 98 38 38 38 98 100 100 100 100 100 42 112 112 106 108 115 110 103 112 1200 166 181 186 160 Overloaded Moves . | . . . . . . . . . . . . . . . . . . . . . . . . . . . . . . . . Propulsion Burnouts . | . . . . . . . . . . . . . . . . . . . . . . . . . . . . . . . . Robots Hopped 1 | . . . . . . . . . . . . . . . . . . . . . . 1 . . . . . . . . . Potential Cave-ins . | . . . . . . . . . . . . . . . . . . . . . . . . . . . . . . . . Cave-ins Triggered . | . . . . . . . . . . . . . . . . . . . . . . . . . . . . . . . . Exploration Rate (%) 59 | 3 94 99 48 99 58 4 97 45 82 65 84 74 25 84 56 73 74 13 95 47 88 59 91 72 12 88 43 36 79 10 22 Regions Visited 31 Branch Regions 15 Pre-discovered Areas 5 | . . 1 . . . . . . . 1 1 . . 1 . 1 . . . . . . . . . . . . . . . Known Exits Taken 19 | . . . 1 1 1 . . 1 1 1 1 1 1 1 1 1 1 . . 1 . . . 1 . . 1 1 1 1 . Unknown Exits Taken 6 | 1 1 1 . . . . . . . . . . . . . . . . . . 1 1 1 . . . . . . . . Scrap Searched 23 | . . 1 . 1 . . . . 4 2 3 5 . . 3 . 4 . . . . . . . . . . . . . . Spaces Dug 257 | . . . . . 4 . . 8 2 2 . . 22 4 1 . 1 15 5 63 1 . . 18 3 . 55 13 16 8 16 Terrain Destroyed 1164 | . 34 22 12 4 39 . . 20 54 6 . . 48 55 1 . 20 26 10 104 70 13 1 252 8 4 81 25 25 26 204 Melee 4 | . . . . . . . . . . . . . . . . . . . . . . . . . . . . . 3 1 . Projectile 509 | . . . . 4 7 . . 13 4 6 . . 32 16 1 . 14 26 10 104 8 . 1 81 7 4 81 19 22 25 24 AOE 647 | . 34 22 12 . 32 . . 7 50 . . . 16 39 . . 6 . . . 62 13 . 168 . . . 6 . . 180 Terrain Rammed . | . . . . . . . . . . . . . . . . . . . . . . . . . . . . . . . . Walls Destroyed . | . . . . . . . . . . . . . . . . . . . . . . . . . . . . . . . . Machines Disabled . | . . . . . . . . . . . . . . . . . . . . . . . . . . . . . . . . Actions | -11 -10 -10 -9 -9 -8 -7 -7 -7 -7 -7 -7 -6 -6 -6 -6 -6 -5 -5 -5 -5 -5 -5 -5 -5 -4 -4 -4 -3 -3 -2 -1 --------- Run | Yrd Mat Min Mat Min Mat Fac Was Fac Low Low Zio Pro Fac Low Low Dat Pro Fac Was Fac Ext Cet Arc Hub Fac Was Fac Res Qua Res Acc Total 34215 | 73 1170 596 604 827 1659 130 241 3059 971 1046 989 371 1433 755 276 87 1536 732 817 2716 3255 603 848 1635 780 531 2815 1405 942 378 935 Wait 5826 | 3 129 23 119 52 88 1 30 660 88 200 106 6 231 48 23 . 172 117 340 449 962 186 432 294 116 117 439 221 83 28 63 Move 25294 | 50 873 543 364 718 1330 116 203 2272 840 813 866 361 1097 674 246 83 1209 545 419 2077 2013 362 343 1177 579 385 2156 971 713 223 673 Hop 1 | . . . . . . . . . . . . . . . . . . . . . . 1 . . . . . . . . . Pick Up 312 | 5 33 4 16 2 19 3 1 16 . . 1 1 14 . 1 . 11 6 4 20 22 5 6 12 13 4 15 35 14 9 20 Fast Attach 105 | 7 3 . 2 2 5 . . 1 1 . 5 . 1 1 . . 4 1 4 1 . . 11 4 7 4 17 15 3 3 3 Attach 95 | . 4 . 1 . 5 2 . . . . . . 3 1 . . . 3 2 2 3 1 1 5 7 2 15 16 . 14 8 Detach 54 | 1 1 . . . 1 . . . . . . . 1 1 . . . . 4 . 2 1 . . 7 1 12 13 3 6 . Swap 475 | . 16 8 17 5 45 2 4 22 17 3 4 3 13 7 3 4 15 14 10 28 40 16 9 25 10 4 36 42 31 10 12 Drop 364 | . 18 6 23 6 39 4 1 19 2 . 6 . 14 . 2 . 12 7 7 21 26 8 11 17 16 8 16 35 20 2 18 Fire 1605 | 7 93 12 62 42 127 2 2 69 23 30 1 . 59 23 1 . 105 36 27 118 126 23 35 101 25 6 104 57 70 81 138 Melee 7 | . . . . . . . . . . . . . . . . . . . . . . . . . . . . . 5 2 . Ram 5 | . . . . . . . . . . . . . . . . . . . . . . . . . . . 5 . . . . Kick . | . . . . . . . . . . . . . . . . . . . . . . . . . . . . . . . . Crush . | . . . . . . . . . . . . . . . . . . . . . . . . . . . . . . . . Escape Stasis . | . . . . . . . . . . . . . . . . . . . . . . . . . . . . . . . . Rewire 72 | . . . . . . . . . . . . . . . . . 8 3 . . 61 . . . . . . . . . . Trap . | . . . . . . . . . . . . . . . . . . . . . . . . . . . . . . . . Miscellaneous . | . . . . . . . . . . . . . . . . . . . . . . . . . . . . . . . . Route ------- -11/Scrapyard -10/Materials (discovered 4 exits: *Mat x3 / *Min) -10/Mines (discovered 4 exits: *Mat x2 / [*Exi] / [*Sub]) -9/Materials (discovered 4 exits: Mat x3 / *Min) -9/Mines (discovered 3 exits: *Mat x2 / *Zio) -8/Materials -7/Factory -7/Waste -7/Factory (discovered 5 exits: *Fac / *Sto x2 / *Low x2) -7/Lower Caves -7/Lower Caves -7/Zion -6/Proximity Caves -6/Factory (discovered 4 exits: Fac x2 / *Low x2) -6/Lower Caves -6/Lower Caves -6/Data Miner -5/Proximity Caves -5/Factory (discovered 4 exits: Fac / Upp x2 / *Ext) -5/Waste -5/Factory (discovered 6 exits: *Fac x2 / *Upp x2 / *Ext x2) -5/Extension (discovered 2 exits: *Fac / *Cet) -5/Cetus (discovered 2 exits: *Fac / [*Arc]) -5/Archives (discovered 3 exits: *Fac / *Hub x2) -5/Hub_04(d) (discovered 2 exits: *Fac x2) -4/Factory (discovered 3 exits: Res / Upp x2) -4/Waste -4/Factory (discovered 4 exits: *Res x2 / Upp x2) -3/Research (discovered 3 exits: Arm / *Qua x2) -3/Quarantine -2/Research (discovered 2 exits: *Acc / [Tes]) -1/Access To Epsilon Eridani History --------- Turn | Location | Event 44 | -11/Scrapyard | Discovered new exit (range 13) 80 | -11/Scrapyard | Entered Materials 293 | -10/Materials | Repaired Assault Rifle 314 | -10/Materials | Build established: Mutant 429 | -10/Materials | Discovered new exit (range 7) 771 | -10/Materials | Discovered new exit (range 7) 1204 | -10/Materials | Lost 4 parts (1p1n2w) 1211 | -10/Materials | Discovered new exit (range 16) 1748 | -10/Materials | Discovered new exit (range 7) 1907 | -10/Materials | Entered Mines 1908 | -10/Mines | Learned location of Storage (-7) 1939 | -10/Mines | Deemed a non-threat by the Exiles lab entrance 1941 | -10/Mines | Discovered new exit (range 5) 2040 | -10/Mines | Core integrity fell below 50% 2210 | -10/Mines | Discovered new exit (range 9) 2335 | -10/Mines | Discovered new exit (range 9) 2355 | -10/Mines | Build established: Scavenger-Mutant 2556 | -10/Mines | Learned Materials security intel 2569 | -10/Mines | Learned 4 Materials zone layouts 2657 | -10/Mines | Met a Derelict shopkeep closing up shop 2763 | -10/Mines | Discovered new exit (range 10) 3140 | -10/Mines | Entered Materials 3140 | -9/Materials | Evolved 2 slots: Propulsion x1, Utility x1 3141 | -9/Materials | Identified exit to Mines 3316 | -9/Materials | Identified exit to Materials 4122 | -9/Materials | Entered Mines 4205 | -9/Mines | A weapon hastily lodged in a ceiling crevice suddenly fell to the ground 4273 | -9/Mines | Learned Materials security intel 4284 | -9/Mines | Discovered exit to Materials (range 5) 4285 | -9/Mines | A Derelict revealed a hidden shortcut to a safe place 4440 | -9/Mines | Found a hidden stash of uninstalled traps 4613 | -9/Mines | Received a Rocket Launcher from a helpful Derelict 4977 | -9/Mines | Learned Materials emergency access door positions 4990 | -9/Mines | Discovered exit to Materials (range 11) 5358 | -9/Mines | Entered Materials 5358 | -8/Materials | Evolved 2 slots: Propulsion x1, Utility x1 6226 | -8/Materials | Discovered new exit (range 13) 6303 | -8/Materials | Garrison activated, responded to threat 7845 | -8/Materials | Identified exit to Factory 7846 | -8/Materials | Entered Factory 7846 | -7/Factory | Evolved 2 slots: Propulsion x1, Utility x1 7908 | -7/Factory | Sucked down chute 7908 | -7/Factory | Entered Waste 7909 | -7/Waste | Found Prototype Device 7909 | -7/Waste | Identified Adv. EM Shield 7923 | -7/Waste | EMP discharged 7937 | -7/Waste | Spotted C-40 Crusher 7938 | -7/Waste | Spotted C-40 Crusher 7974 | -7/Waste | Spotted C-40 Crusher 7978 | -7/Waste | Spotted C-40 Crusher 8010 | -7/Waste | Spotted C-40 Crusher 8010 | -7/Waste | Spotted C-40 Crusher 8023 | -7/Waste | EMP discharged 8023 | -7/Waste | System corruption reached 10% 8029 | -7/Waste | Discovered new exit (range 12) 8033 | -7/Waste | Identified exit to Factory 8033 | -7/Waste | Entered Factory 8037 | -7/Factory | Discovered new exit (range 5) 8122 | -7/Factory | Identified exit to Storage 8148 | -7/Factory | Build established: Scout 8390 | -7/Factory | Repaired Adv. EM Shield? 8392 | -7/Factory | Allied Derelicts emerged from ambush trap array 9428 | -7/Factory | Discovered new exit (range 19) 9474 | -7/Factory | Repaired Beamcaster 9482 | -7/Factory | Identified exit to Factory 9509 | -7/Factory | Identified exit to Lower Caves 9805 | -7/Factory | Entered Lower Caves 9963 | -7/Lower Caves | Encountered a Warlord checkpoint 9966 | -7/Lower Caves | Learned location of 1 exit from Factory 10070 | -7/Lower Caves | Found Alien Artifact 10070 | -7/Lower Caves | Identified Core Expander 10070 | -7/Lower Caves | Installed Core Expander, added new Power slot 10284 | -7/Lower Caves | Discovered new exit (range 18) 10290 | -7/Lower Caves | Identified exit to Lower Caves 10292 | -7/Lower Caves | Entered another Lower Caves area 10302 | -7/Lower Caves | Encountered a Warlord checkpoint 10304 | -7/Lower Caves | Learned 4 Factory zone layouts 10317 | -7/Lower Caves | Entered an active Warlord outpost 10327 | -7/Lower Caves | Learned Armory garrison access intel 10424 | -7/Lower Caves | Discovered new exit (range 19) 10855 | -7/Lower Caves | Identified exit to Zion 10888 | -7/Lower Caves | Entered Zion 10915 | -7/Zion | Discovered new exit (range 16) 10921 | -7/Zion | System corruption cleaned by Quarantine Array 10967 | -7/Zion | Found Prototype Special Weapon 10967 | -7/Zion | Identified RU-N14's Throwing Claymores 10970 | -7/Zion | Found RU-N14's Throwing Claymores 11002 | -7/Zion | Given the Hacking Drone Bay 11002 | -7/Zion | Found Prototype Device 11002 | -7/Zion | Identified Hacking Drone Bay 11043 | -7/Zion | Learned Factory emergency access door positions 11058 | -7/Zion | Found Prototype Device 11058 | -7/Zion | Identified Bomb Factory No. 2 11073 | -7/Zion | Learned 8 Factory zone layouts 11160 | -7/Zion | Gained Derelict followers 11167 | -7/Zion | Learned Factory terminal intel 11230 | -7/Zion | Gained Derelict followers 11238 | -7/Zion | Identified exit to Proximity Caves 11343 | -7/Zion | Entered Proximity Caves 11343 | -6/Proximity Caves | Accompanied by 7 allies 11408 | -6/Proximity Caves | Learned Factory machine intel 11429 | -6/Proximity Caves | Learned location of 1 exit from Factory 11467 | -6/Proximity Caves | Discovered exit to Factory (range 17) 11499 | -6/Proximity Caves | Entered Factory 11499 | -6/Factory | Evolved 2 slots: Utility x2 11500 | -6/Factory | Identified exit to Factory 11503 | -6/Factory | Loaded intel: 268 machine locations 11504 | -6/Factory | Loaded intel: 26 terminal locations 12105 | -6/Factory | Build established: Hacker-Scout 12285 | -6/Factory | Identified exit to Lower Caves 12379 | -6/Factory | Entered Lower Caves 12414 | -6/Lower Caves | Learned Factory stockpile data 12423 | -6/Lower Caves | Spotted B-75 Beast 12655 | -6/Lower Caves | Build established: Hacker-Skirmisher 12734 | -6/Lower Caves | Encountered a Warlord checkpoint 13088 | -6/Lower Caves | Discovered new exit (range 6) 13097 | -6/Lower Caves | Identified exit to Lower Caves 13099 | -6/Lower Caves | Learned location of Extension (-5) 13168 | -6/Lower Caves | Entered another Lower Caves area 13199 | -6/Lower Caves | Encountered a Warlord checkpoint 13382 | -6/Lower Caves | Learned 4 Factory zone layouts 13426 | -6/Lower Caves | Discovered new exit (range 15) 13430 | -6/Lower Caves | Identified exit to Data Miner 13431 | -6/Lower Caves | Entered Data Miner 13431 | -6/Data Miner | Discovered new exit (range 6) 13438 | -6/Data Miner | Met Data Miner 13448 | -6/Data Miner | Learned location of Section 7 (-2) 13448 | -6/Data Miner | Acquired the access code to Warlord's prototype stash 13455 | -6/Data Miner | Received God Mode back door access code from Data Miner 13466 | -6/Data Miner | Identified exit to Proximity Caves 13473 | -6/Data Miner | Entered Proximity Caves 13475 | -5/Proximity Caves | Greeted by an Infiltrator in a former 0b10 base 13517 | -5/Proximity Caves | Former 0b10 base attacked by MAIN.C 13614 | -5/Proximity Caves | Repaired Imp. Airjet 13873 | -5/Proximity Caves | 0b10 base defense nominally successful 13906 | -5/Proximity Caves | Lost 16 allies 13911 | -5/Proximity Caves | Build established: Hacker-Scout 14024 | -5/Proximity Caves | Lost 11 allies 14560 | -5/Proximity Caves | Discovered exit to Factory (range 9) 14573 | -5/Proximity Caves | Learned location of 1 exit from Proximity Caves 14596 | -5/Proximity Caves | Entered Factory 14596 | -5/Factory | Evolved 2 slots: Propulsion x1, Utility x1 14597 | -5/Factory | Identified exit to Upper Caves 14598 | -5/Factory | Identified exit to Factory 15050 | -5/Factory | Discovered new exit (range 6) 15051 | -5/Factory | Sucked down chute 15051 | -5/Factory | Entered Waste 15061 | -5/Waste | Spotted C-40 Crusher 15124 | -5/Waste | Spotted C-40 Crusher 15174 | -5/Waste | Spotted C-40 Crusher 15178 | -5/Waste | Spotted C-40 Crusher 15309 | -5/Waste | Spotted C-40 Crusher 15326 | -5/Waste | Found Unknown Launcher 15332 | -5/Waste | Spotted C-40 Crusher 15342 | -5/Waste | Discovered new exit (range 11) 15385 | -5/Waste | Crushed by Compactor (1 part destroyed, 1 dropped) 15401 | -5/Waste | Warlord forces began an assault 15407 | -5/Waste | Allies destroyed C-40 Crusher 15425 | -5/Waste | Identified Fusion Bomb Launcher 15426 | -5/Waste | Allies destroyed C-40 Crusher 15428 | -5/Waste | Allies destroyed C-40 Crusher 15434 | -5/Waste | Allies destroyed C-40 Crusher 15443 | -5/Waste | Allies destroyed C-40 Crusher 15455 | -5/Waste | Allies destroyed C-40 Crusher 15480 | -5/Waste | Lost 6 allies 15569 | -5/Waste | Found Damper Plating 15610 | -5/Waste | Identified exit to Factory 15668 | -5/Waste | Entered Factory 15668 | -5/Factory | Accompanied by 12 allies 15682 | -5/Factory | Identified exit to Extension 15682 | -5/Factory | Watched by a mysterious "MATRIX" hacker 15959 | -5/Factory | Discovered exit to Factory (range 7) 15987 | -5/Factory | Found Prototype Launcher 15992 | -5/Factory | Identified Tesla Bomb Launcher 16093 | -5/Factory | Lost 5 allies 16169 | -5/Factory | P-70 Sage assimilated allied 8B-38H(m) 16289 | -5/Factory | Allied Derelicts emerged from ambush trap array 16467 | -5/Factory | Repaired Adv. Thermal Shield 16471 | -5/Factory | Discovered exit to Factory (range 11) 16918 | -5/Factory | Repaired Gravmag Array+ 16930 | -5/Factory | Fabricated Weapon Mount (x2) 17458 | -5/Factory | Entered Extension 17875 | -5/Extension | Rescued a captive Derelict 17876 | -5/Extension | Rescued a captive Derelict 18358 | -5/Extension | Search patrols dispatched 18453 | -5/Extension | Build established: Hacker-Mutant 18758 | -5/Extension | Rescued A7 19002 | -5/Extension | Rescued a captive Derelict 19003 | -5/Extension | Rescued a captive Derelict 19051 | -5/Extension | Rescued a captive Derelict 19051 | -5/Extension | Rescued a captive Derelict 19072 | -5/Extension | Rescued a captive Derelict 19073 | -5/Extension | Rescued a captive Derelict 19306 | -5/Extension | Spotted B-75 Beast 19329 | -5/Extension | Allies destroyed B-75 Beast 19339 | -5/Extension | Build established: Commander-Mutant 19363 | -5/Extension | Spotted B-75 Beast 19382 | -5/Extension | Allies destroyed B-75 Beast 19480 | -5/Extension | Rescued a captive Derelict 19520 | -5/Extension | Rescued a captive Derelict 19521 | -5/Extension | Rescued a captive Derelict 19570 | -5/Extension | Rescued a captive Derelict 19571 | -5/Extension | Rescued a captive Derelict 19724 | -5/Extension | Energy Cycler disabled 19781 | -5/Extension | Lost 4 allies 19803 | -5/Extension | Discovered exit to Factory (range 13) 19835 | -5/Extension | Discovered new exit (range 6) 19888 | -5/Extension | Disrupted transfer network 19895 | -5/Extension | Entered Cetus 19895 | -5/Cetus | Accompanied by 10 allies (A7) 19900 | -5/Cetus | Acquired a Cetus Manufacturing Module code from A7 19940 | -5/Cetus | Lost 11 allies 19944 | -5/Cetus | Spotted Cetus Guard 19945 | -5/Cetus | Spotted Cetus Guard 19952 | -5/Cetus | Spotted Cetus Guard 19955 | -5/Cetus | Spotted Cetus Guard 19957 | -5/Cetus | Allies destroyed Cetus Guard 19965 | -5/Cetus | Destroyed Cetus Guard 20025 | -5/Cetus | Started Cetus Manufacturing Module 20028 | -5/Cetus | Discovered new exit (range 20) 20050 | -5/Cetus | Manufactured an Enhanced Grunt 20075 | -5/Cetus | Manufactured an Enhanced Grunt 20100 | -5/Cetus | Manufactured an Enhanced Grunt 20125 | -5/Cetus | Manufactured an Enhanced Grunt 20150 | -5/Cetus | Manufactured an Enhanced Grunt 20257 | -5/Cetus | Spotted Cetus Guard 20257 | -5/Cetus | Spotted Cetus Guard 20265 | -5/Cetus | Destroyed Cetus Guard 20271 | -5/Cetus | Destroyed Cetus Guard 20271 | -5/Cetus | Spotted Cetus Guard 20282 | -5/Cetus | Destroyed Cetus Guard 20294 | -5/Cetus | Discovered exit to Factory (range 20) 20304 | -5/Cetus | Met Revision 17 20452 | -5/Cetus | Entered Archives 20452 | -5/Archives | Accompanied by 12 allies 20596 | -5/Archives | System corruption reached 10% 20611 | -5/Archives | Discovered new exit (range 20) 20645 | -5/Archives | Discovered new exit (range 20) 21220 | -5/Archives | Discovered exit to Factory (range 20) 21264 | -5/Archives | Entered Hub_04(d) 21264 | -5/Hub_04(d) | Accompanied by 9 allies 21264 | -5/Hub_04(d) | Discovered exit to Factory (range 11) 21361 | -5/Hub_04(d) | Discovered exit to Factory (range 19) 22056 | -5/Hub_04(d) | Network Hub disabled 22117 | -5/Hub_04(d) | Build established: Scavenger-Mutant 22344 | -5/Hub_04(d) | Found Prototype Device 22344 | -5/Hub_04(d) | Identified Exp. Thermal Shield 22484 | -5/Hub_04(d) | Spotted Lightning 22484 | -5/Hub_04(d) | Spotted Lightning 22495 | -5/Hub_04(d) | Spotted Lightning 22540 | -5/Hub_04(d) | Destroyed Lightning 22540 | -5/Hub_04(d) | Destroyed Lightning 22567 | -5/Hub_04(d) | Destroyed Lightning 22583 | -5/Hub_04(d) | Found Prototype Energy Cannon 22738 | -5/Hub_04(d) | Spotted Lightning 22775 | -5/Hub_04(d) | Spotted Lightning 22778 | -5/Hub_04(d) | Spotted Lightning 22845 | -5/Hub_04(d) | Destroyed Lightning 22887 | -5/Hub_04(d) | Destroyed Lightning 22898 | -5/Hub_04(d) | Destroyed Lightning 22905 | -5/Hub_04(d) | Found Prototype Energy Cannon 23064 | -5/Hub_04(d) | First assault squad dispatched 23131 | -5/Hub_04(d) | Entered Factory 23131 | -4/Factory | Evolved 2 slots: Utility x2 23132 | -4/Factory | Identified exit to Research 23201 | -4/Factory | Central database locked down 23236 | -4/Factory | Identified exit to Upper Caves 23243 | -4/Factory | Identified EMDS (x2) 23620 | -4/Factory | Manually triggered Chute Trap 23620 | -4/Factory | Sucked down chute 23620 | -4/Factory | Entered Waste 23620 | -4/Waste | The area was eerily silent 23630 | -4/Waste | Build established: Wizard-Scout 23749 | -4/Waste | Found Prototype Device 23749 | -4/Waste | Identified Exp. Terrain Scanner 23752 | -4/Waste | Discovered new exit (range 19) 23946 | -4/Waste | Identified exit to Factory 23953 | -4/Waste | Entered Factory 24194 | -4/Factory | Fabricated Prc. Energy Filter (x1) 24220 | -4/Factory | Fabricated Exp. Utility Shielding (x1) 24250 | -4/Factory | Fabricated Prc. Energy Filter (x1) 24529 | -4/Factory | Build established: Hacker-Scout 24789 | -4/Factory | Fabricated Lgt. Regenerative Plating? 24801 | -4/Factory | Targeted by mysterious "MATRIX" hacker 24873 | -4/Factory | Repaired Adv. Force Field 25220 | -4/Factory | Discovered exit to Research (range 19) 25302 | -4/Factory | Fabricated Exp. Terrain Scan Processor? 25585 | -4/Factory | Discovered exit to Research (range 7) 25681 | -4/Factory | System corruption reached 10% 25703 | -4/Factory | Search patrols dispatched 25934 | -4/Factory | Entered Research 25934 | -3/Research | Evolved 2 slots: Utility x1, Weapon x1 26032 | -3/Research | Lost 4 parts (1p2n1w) 26065 | -3/Research | Identified exit to Armory 26065 | -3/Research | Identified exit to Quarantine 26134 | -3/Research | Revision forces began assault on 0b10 26140 | -3/Research | Met up with Revision 17++ 26565 | -3/Research | Build established: Scavenger-Skirmisher 26634 | -3/Research | Research terminal network offline 26716 | -3/Research | Spotted Executioner 26719 | -3/Research | Spotted Striker 26750 | -3/Research | Found Prototype Processor 26750 | -3/Research | Identified Exp. Core Analyzer 26756 | -3/Research | Found Prototype Device 26756 | -3/Research | Identified Adv. Kinecellerator 26870 | -3/Research | Fabricated Quantum Capacitor? 26900 | -3/Research | Spotted Striker 26924 | -3/Research | Destroyed Striker 26961 | -3/Research | Fabricated Exp. Utility Shielding (x1) 26971 | -3/Research | Destroyed 8 combat bots 27100 | -3/Research | Spotted Striker 27110 | -3/Research | Destroyed Striker 27111 | -3/Research | Spotted Striker 27145 | -3/Research | Destroyed Striker 27148 | -3/Research | Spotted Striker 27245 | -3/Research | Spotted Striker 27250 | -3/Research | Destroyed Striker 27256 | -3/Research | Spotted Striker 27495 | -3/Research | Entered Quarantine 27627 | -3/Quarantine | Discovered new exit (range 26) 27681 | -3/Quarantine | Cryocooling Duct disabled 27696 | -3/Quarantine | Ambient heat levels rising (+20) 27696 | -3/Quarantine | Non-combat units ordered to evacuate 27708 | -3/Quarantine | Found Alien Slashing Weapon 27712 | -3/Quarantine | Identified Sigix Broadsword 27844 | -3/Quarantine | Found Alien Energy Cannon 27937 | -3/Quarantine | System corruption reached 10% 28000 | -3/Quarantine | Build established: Scavenger-Assassin 28034 | -3/Quarantine | Found Prototype Device 28058 | -3/Quarantine | Identified Exp. Shield Generator 28104 | -3/Quarantine | Found Alien Artifact 28304 | -3/Quarantine | Found Alien Artifact 28555 | -3/Quarantine | Identified exit to Research 28559 | -3/Quarantine | Entered Research 28559 | -2/Research | Evolved 2 slots: Utility x1, Weapon x1 28700 | -2/Research | Central database locked down 28764 | -2/Research | Discovered new exit (range 23) 28775 | -2/Research | Discovered new exit (range 30) 28784 | -2/Research | Assembled infested ambush trap array 28805 | -2/Research | Identified Core Cannon 28862 | -2/Research | System corruption reached 10% 28883 | -2/Research | Destroyed 10 combat bots 28892 | -2/Research | Lost 11 parts (2p3n4u2w) 28964 | -2/Research | Found Prototype Launcher 28972 | -2/Research | Identified Point Singularity Launcher 28976 | -2/Research | Identified exit to Access 28991 | -2/Research | Entered Access 28991 | -1/Access | Evolved 2 slots: Utility x2 29297 | -1/Access | Build established: Skirmisher 29356 | -1/Access | Found Prototype Launcher 29365 | -1/Access | Found Prototype Launcher 29404 | -1/Access | Identified Smartbomb Launcher (x2) 29741 | -1/Access | First assault squad dispatched 29787 | -1/Access | Build established: Scavenger-Skirmisher 29849 | -1/Access | Discovered new exit (range 30) 30139 | -1/Access | Destroyed 8 combat bots 30381 | -1/Access | Identified exit to Surface 30383 | *** | Escaped! Last Messages --------------- 30253_ Unknown Device fried. 30253_ R-10 Processor destroyed. 30254_ Acquired 128 matter. 30254_ K-01 Serf collects debris. 30256_ Acquired 10 matter. 30257_ K-01 Serf collects debris. 30258_ Acquired 10 matter. 30261_ System corrupted: Heat flow error (+241). 30261_ K-01 Serf collects debris. 30278_ Dropped Energy Filter. 30278_ Acquired Enh. Hardcell Cannon. 30286_ System corrupted: Component data lost. 30330_ Connecting with Terminal... Rookie mistake. 30338_ System corrupted: Component data lost. 30349_ System corrupted: Disruptor Cannon failed to cycle. 30367_ U-05 Engineer builds a Wall. 30373_ The unstable cave ceiling collapses. 30378_ Main Access Shell breached. 30381_ EXIT=IDENTIFIED: SURFACE Map ----- +----------------------------------------------------+ | ## ""# # """ """ ######################## | | ## Y"# # """S""" ## ############# | | ## ""# ############### ############# | | ## ""# # "" ############# | | "" ""# # """ ############# | | ##= # # R" ############# | | ## # / """ ############# | | ####################### # ############# | | ####################### # ########### | | ###################### ##################### | | ################### ################## | | ################### ################## | | ################### ################## | | ################### ################## | | ################### BB BB ################## | | ################### BB BB ################## | | ################### #################### | | ###################""""""""""#################### | | #################""""""""""################## | | # ## ###""""""""""################## | | # ## ! ###""""""""""################## | | #### "" ### ################## | | + """" ### """""" ################## | | # """" ### " " ################## | | # """" ### " "" " ##################+# | | + """" ### " "@ " ######## | | # """" ### " " ######## | | # "" ### """"" ######## "" | | # "" ### ######## "" | | # ### ;"###### """""" | | # ##""""""""""""####### """""" | | ################"" ######## "" | | ###|## ###"" ######## "" | | # #!## ###"" ######## | | ### ## != ###T u ######## | | ###!## != = ###"" ######## | | ### ## = ###"" ######## | | !%!########+#+#####"" ############+####### | | | | | | ############################# ####+####### | | #+############################### ## | | ## ############ ## | | ## ############ ## " | | ## ############ ## """ | | ## ############ ## """ | | ## ############ ## " | | ## ############ ## | | ## ############ ## | | ! ## ############ ## | +----------------------------------------------------+ Best States ------------- Heat Dissipation 103 Coolant Potential 100 Energy Generation 49 Energy Capacity 690 Matter Stores 300 Matter Capacity 800 Sight Range 23 Robot Scan Range 16 Terrain Scan Range 30 Terrain Scan Density 1010 Jamming Range 16 Power Amplification 30 Armor Coverage 1600 Resistance: KI 25 Resistance: TH 30 Resistance: EM 90 Utility Shielding 90 Evasion (%) 82 Targeting Accuracy 20 Core Analysis 8 Recoil Reduction 4 Energy Filtering 50 Particle Charging 25 Offensive Hacking 50 Defensive Hacking 26 Authchip Count 3 Item Schematics ----------------- Huge Storage Unit | -10/Materials | Hacked Sensor Array | -10/Mines | Hacked Imp. Signal Interpreter | -8/Materials | Hacked Imp. Hardlight Generator | -7/Zion | Archive Imp. Cooling System | -7/Zion | Archive Corruption Screen | -7/Zion | Archive Angular Momentum Engine | -7/Zion | Archive Imp. Deuterium Engine | -7/Zion | Archive Thermal Shield | -7/Zion | Archive Imp. System Shield | -7/Zion | Archive Proton Missile Launcher | -7/Zion | Archive Imp. Weapon Cycler | -7/Zion | Archive Antigrav System | -7/Zion | Archive Imp. Melee Analysis Suite | -7/Zion | Archive Imp. Medium Treads | -7/Zion | Archive Magnetic Acceleration Cannon | -7/Zion | Archive Matter Filter | -7/Zion | Archive Riot Gun | -7/Zion | Free Flamer | -7/Zion | Free Ripper | -7/Zion | Free Combat Drone Bay | -6/Data Miner | Free Lgt. Regenerative Plating | -6/Data Miner | Free Cld. Gravmag System | -6/Data Miner | Free Prc. Matter Filter | -6/Data Miner | Free Kinetic Spear | -6/Data Miner | Free Field Propulsion Array | -6/Data Miner | Free Imp. Remote Force Field | -6/Data Miner | Free Railgun | -6/Data Miner | Free Adv. Field Recycling Unit | -6/Data Miner | Free Imp. Antigrav System | -6/Data Miner | Free Matter Neutralizer | -6/Data Miner | Free Particle Reactor | -6/Data Miner | Free Weapon Mount | -5/Factory | Hacked Exp. Utility Shielding | -5/Factory | Hacked Quantum Capacitor | -5/Hub_04(d) | Hacked Prc. Energy Filter | -4/Factory | Hacked Exp. Terrain Scan Processor | -4/Factory | Hacked Adv. EM Shield | -4/Factory | Hacked Robot Schematics ------------------ R-06 Scavenger | -7/Zion | Archive K-01 Serf | -7/Zion | Archive M-28 Smith | -7/Zion | Archive C-57 Dissector | -7/Zion | Archive A-15 Conveyor | -6/Data Miner | Free E-15 Imp | -6/Data Miner | Free B-60 Warrior | -6/Data Miner | Free Y-64 Sentinel | -6/Data Miner | Free Fabricated ------------ Weapon Mount | x2 | -5/Factory | Authchip Prc. Energy Filter | x1 | -4/Factory | Authchip Exp. Utility Shielding | x1 | -4/Factory | Authchip Prc. Energy Filter | x1 | -4/Factory | Authchip Lgt. Regenerative Plating | x1 | -4/Factory | Authchip Exp. Terrain Scan Processor | x1 | -4/Factory | Authchip Quantum Capacitor | x2 | -3/Research | Authchip Exp. Utility Shielding | x1 | -3/Research Repaired ---------- Assault Rifle | 45% | -10/Materials Adv. EM Shield | 6% | -7/Factory Beamcaster | 30% | -7/Factory Imp. Airjet | 65% | -5/Proximity Caves Adv. Thermal Shield | 48% | -5/Factory Gravmag Array | 73% | -5/Factory Adv. Force Field | 14% | -4/Factory Studied --------- Hover Unit | -9/Materials | Hacked Grenade Launcher | -9/Materials | Hacked Wheel | -9/Materials | Hacked Hvy. Assault Rifle | -9/Materials | Hacked Imp. Hover Unit | -8/Materials | Hacked Gravmag System | -7/Factory | Hacked Airjet | -7/Factory | Hacked Hvy. Rocket Launcher | -7/Factory | Hacked Gravmag Array | -6/Factory | Hacked Antigrav System | -5/Factory | Hacked Myomer Leg | -2/Research | Hacked Alien Tech Used ----------------- Core Expander Sigix Broadsword Core Cannon Achievements -------------- None Challenges ------------ None Game ------ Seed SwarmEnergyBallwheel Manual? 0 Play Time 06:53:24 Cumulative 629.3 hours Start 2026.09.08 @ 19:40:42 End 2026.09.09 @ 03:03:43 Sessions 3 Manual Loads 0 Difficulty Rogue Special Mode None Game No. 274 Rogue 274 Adventurer 0 Explorer 0 Win Type 0 Total 13 Types 9/0/3/0/0/0/1/0/0/0 Lore% 80 Gallery% 74 Achievement% 55 Wizard Run 0 Options --------- Layout 0 ASCII 0 Keyboard 1 Movement Vi Keybinds 0 Fullscreen 2 Font 18/SmallcapsGlow Map View 76x50 Zoom Use 0% Tactical HUD 1 Map Filters NONE Filters NONE Steam 1 RUN: 455b4916-5586-4c0d-a620-fd66a6da01d9